Cogmind - Beta 11.1 --- EXPLORER MODE // 2022.06.20 @ 01:17:27 // Winter2019/RPGLIKE Player: Grimbling Result: Fortifying 0b10! Performance ------------- Evolutions (9) 4500 Regions Visited (29) 5800 Robots Destroyed (429) 2145 Value Destroyed (31505) 31505 Prototype IDs (83) 1660 Alien Tech Used (13) 2600 Bonus (18986) 18986 TOTAL SCORE: 67196 Bonus ------- High Alert Combat Kills 2142 Follower Combat Kills 1744 Network Hubs Disabled 800 Met Zhirov 300 Met Warlord at Base 500 MAIN.C Attacked Warlord 500 Built Enhanced Grunts 300 Met R17 at Cetus 500 Hacked Protovariant 500 Destroyed MAIN.C Guards 500 Met MAIN.C 5000 Destroyed MAIN.C Shell 5000 Met Warlord at Command 2000 Win 3000 Friendly Fire -3800 Cogmind --------- Core Integrity 723/1100 Matter 300/300 Energy 767/1550 System Corruption 1% Temperature Cool (0) Movement Walking (92) Location By MAIN.C's Side Parts ------- > --- POWER (4) -------- Vortex Chain Reactor Vortex Chain Reactor > --- PROPULSION (6) --- Experimental Biometal Leg Experimental Biometal Leg Experimental Biometal Leg Myomer Exoskeleton > --- UTILITY (11) ----- Experimental Core Analyzer Improved Particle Charger Experimental Weapon Cycler Experimental Phase Shifter Centrium Heavy Armor Plating Graphene Brace Advanced Focal Shield Beam Splitter Experimental EM Disruption Field Experimental Shield Generator > --- WEAPON (5) ------- Enhanced Quantum Rifle Enhanced Quantum Rifle Heavy Quantum Rifle Enhanced Nova Cannon Enhanced Nova Cannon > --- INVENTORY (7) ---- Protomatter-100 Protomatter-99 Protomatter-43 Improved Terrain Scanner Quantum Capacitor Antimissile System Peak State ------------ > --- POWER ------------ Improved Quantum Reactor Improved Quantum Reactor Vortex Chain Reactor > --- PROPULSION ------- High-density Centrium Leg High-density Centrium Leg High-density Centrium Leg Myomer Exoskeleton > --- UTILITY ---------- Experimental Signal Interpreter Improved Terrain Scanner Experimental Core Analyzer Experimental Core Analyzer Improved Particle Charger Experimental Weapon Cycler Experimental Phase Shifter Centrium Medium Armor Plating Graphene Brace Advanced Focal Shield Experimental EM Disruption Field > --- WEAPON ----------- Enhanced Nova Cannon Drained L-Cannon > --- INVENTORY -------- Protomatter Quantum Capacitor Thermal Barrier Antimissile System Disintegrator [Rating: 267] Favorites ----------- Power Quantum Reactor Engine Angular Momentum Engine Power Core Micro Nuclear Core Reactor Quantum Reactor Propulsion Enhanced Biometal Leg Leg Enhanced Biometal Leg Utility Improved Terrain Scanner Device Improved Terrain Scanner Processor Experimental Core Analyzer Hackware Ghost Barrier Protection Centrium Medium Armor Plating Artifact Core Physics Calibrator Weapon Advanced Variable Charge Gun Energy Gun Advanced Variable Charge Gun Energy Cannon Enhanced Nova Cannon Ballistic Gun Helical Railgun Ballistic Cannon Heavy Hardcell Cannon Build | -11 -10 -10 -10 -9 -8 -7 -7 -6 -6 -6 -6 -6 -5 -5 -5 -5 -4 -4 -4 -4 -4 -3 -3 -3 -2 -2 -2 -1 -1 ------- Run | Scr Mat Min Exi Min Mat Fac Sto Fac Ext Cet Arc Hub Fac Upp Upp War Pro Fac Upp Upp Zhi Pro Res Qua Res Tes Sec Acc Com Slots Evolved 22 | 4 . . 1 . 5 1 4 4 1 . . . . . . . . . . . 1 . . 1 . . . . . Power 3 | . . . . . 1 . 1 1 . . . . . . . . . . . . . . . . . . . . . Propulsion 5 | 1 . . 1 . . . 1 2 . . . . . . . . . . . . . . . . . . . . . Utility 10 | 2 . . . . 2 1 2 . 1 . . . . . . . . . . . 1 . . 1 . . . . . Weapon 4 | 1 . . . . 2 . . 1 . . . . . . . . . . . . . . . . . . . . . Parts Attached 285 | 6 5 . . 1 14 16 19 22 3 9 1 19 1 . . 8 1 5 . . 2 2 1 24 3 53 27 17 26 Power 31 | 1 1 . . . 3 2 4 2 2 1 . 3 . . . 1 1 . . . . . . 3 . 3 1 1 2 Engine 10 | 1 1 . . . 2 1 2 2 1 . . . . . . . . . . . . . . . . . . . . Core 3 | . . . . . 1 1 . . 1 . . . . . . . . . . . . . . . . . . . . Reactor 18 | . . . . . . . 2 . . 1 . 3 . . . 1 1 . . . . . . 3 . 3 1 1 2 Propulsion 51 | 2 1 . . . 1 2 6 8 . . 1 10 . . . 2 . . . . . 1 . 1 1 10 1 1 3 Treads . | . . . . . . . . . . . . . . . . . . . . . . . . . . . . . . Leg 51 | 2 1 . . . 1 2 6 8 . . 1 10 . . . 2 . . . . . 1 . 1 1 10 1 1 3 Wheel . | . . . . . . . . . . . . . . . . . . . . . . . . . . . . . . Hover . | . . . . . . . . . . . . . . . . . . . . . . . . . . . . . . Flight . | . . . . . . . . . . . . . . . . . . . . . . . . . . . . . . Utility 114 | 2 2 . . 1 3 8 5 2 1 3 . 5 1 . . 5 . 5 . . 2 1 1 11 . 20 13 10 13 Device 82 | 1 . . . 1 . 3 3 . . 1 . 3 1 . . 3 . 5 . . 2 1 1 10 . 15 12 8 12 Storage . | . . . . . . . . . . . . . . . . . . . . . . . . . . . . . . Processor 13 | . . . . . 1 1 1 1 1 . . 2 . . . 1 . . . . . . . . . 4 . 1 . Hackware 1 | . . . . . . . . . . . . . . . . 1 . . . . . . . . . . . . . Protection 17 | 1 2 . . . 2 4 1 1 . 2 . . . . . . . . . . . . . 1 . 1 . 1 1 Artifact 1 | . . . . . . . . . . . . . . . . . . . . . . . . . . . 1 . . Weapon 89 | 1 1 . . . 7 4 4 10 . 5 . 1 . . . . . . . . . . . 9 2 20 12 5 8 Energy Gun 62 | 1 1 . . . 7 4 4 10 . 5 . 1 . . . . . . . . . . . 6 1 14 3 2 3 Energy Cannon 23 | . . . . . . . . . . . . . . . . . . . . . . . . 1 1 6 7 3 5 Ballistic Gun 2 | . . . . . . . . . . . . . . . . . . . . . . . . . . . 2 . . Ballistic Cannon 2 | . . . . . . . . . . . . . . . . . . . . . . . . 2 . . . . . Launcher . | . . . . . . . . . . . . . . . . . . . . . . . . . . . . . . Special Weapon . | . . . . . . . . . . . . . . . . . . . . . . . . . . . . . . Impact Weapon . | . . . . . . . . . . . . . . . . . . . . . . . . . . . . . . Slashing Weapon . | . . . . . . . . . . . . . . . . . . . . . . . . . . . . . . Piercing Weapon . | . . . . . . . . . . . . . . . . . . . . . . . . . . . . . . Special Melee Weapon . | . . . . . . . . . . . . . . . . . . . . . . . . . . . . . . Unidentified Prototypes 63 | . . . . 1 2 1 1 2 1 4 . 5 . . . 6 . . . . . . . 6 . 16 10 1 7 Corrupted Parts 2 | . . . . . . . . . . 1 . 1 . . . . . . . . . . . . . . . . . System Corruption 3 | . . . . . . . . . . 2 . 1 . . . . . . . . . . . . . . . . . Parts Lost . | . . . . . . . . . . . . . . . . . . . . . . . . . . . . . . Power . | . . . . . . . . . . . . . . . . . . . . . . . . . . . . . . Propulsion . | . . . . . . . . . . . . . . . . . . . . . . . . . . . . . . Utility . | . . . . . . . . . . . . . . . . . . . . . . . . . . . . . . Weapon . | . . . . . . . . . . . . . . . . . . . . . . . . . . . . . . Highest Loss Streak . | . . . . . . . . . . . . . . . . . . . . . . . . . . . . . . To Critical Strikes . | . . . . . . . . . . . . . . . . . . . . . . . . . . . . . . Average Slot Usage (%) 93 | . 95 100 94 86 89 97 98 94 96 96 98 99 99 100 100 97 94 95 95 95 96 95 96 95 95 92 86 87 85 Engine 3 | . 11 12 11 11 9 6 8 8 8 8 8 6 . . . . . . . . . . . . . . . . . Reactor 8 | . . . . . . . 3 8 8 8 8 9 16 16 16 13 11 12 12 12 12 12 12 11 11 10 11 11 10 Leg 21 | . 24 25 23 22 25 20 20 21 25 25 23 24 25 25 25 25 25 25 25 25 24 23 24 23 23 20 15 15 14 Device 21 | . 12 12 11 12 10 17 20 13 12 12 12 14 15 16 16 15 16 19 25 25 28 28 28 29 30 26 26 29 30 Processor 10 | . . . . . 6 6 14 17 16 16 16 13 12 12 12 12 12 11 8 8 8 8 8 7 7 10 10 7 5 Protection 5 | . 21 25 23 19 8 10 5 4 4 4 8 8 8 8 8 8 8 5 4 4 4 4 4 3 3 2 3 2 3 Energy Gun 16 | . 24 25 23 22 25 26 20 19 20 19 20 19 20 20 20 20 20 20 20 20 20 20 20 18 16 11 6 4 7 Energy Cannon 3 | . . . . . . . . . . . . . . . . . . . . . . . . . 1 6 10 13 9 Naked Turns . | . . . . . . . . . . . . . . . . . . . . . . . . . . . . . . Heaviest Build 158 | 10 14 14 14 22 29 41 61 88 88 104 104 122 122 122 122 135 134 134 133 133 137 137 139 151 157 158 158 147 158 Greatest Support 206 | 20 20 20 20 20 42 55 79 112 101 101 101 190 190 190 190 190 190 190 190 190 190 190 190 190 190 206 206 206 206 Greatest Overweight (x) 1 | . 1 . . 1 . . 1 . . 1 1 1 . . . . . . . . . . . . . 1 . . . Average Overweight (x) . | . . . . . . . . . . . 1 . . . . . . . . . . . . . . . . . . Largest Inventory Capacity 7 | 3 3 3 3 3 3 3 3 3 3 3 3 4 4 5 5 5 6 6 6 6 6 6 6 6 7 7 7 7 7 Average Capacity 4 | 3 3 3 3 3 3 3 3 3 3 3 3 3 4 4 5 5 5 6 6 6 6 6 6 6 6 7 7 7 7 Most Carried 7 | . . . . 2 3 3 3 3 3 3 3 4 3 3 4 5 4 6 6 6 6 5 6 6 7 7 7 7 7 Average Carried 4 | . . . . . 1 1 2 2 3 2 3 2 1 2 3 4 3 5 5 6 4 4 5 5 6 6 6 6 6 Final Capacity 7 | 3 3 3 3 3 3 3 3 3 3 3 3 4 4 5 5 5 6 6 6 6 6 6 6 6 7 7 7 7 7 Final Carried 7 | . . . . 2 3 3 3 3 3 3 3 2 2 3 4 4 4 5 6 6 4 5 6 6 7 7 5 7 7 Class Distribution -------------------- 20% | Scavenger-Tank 18% | Scavenger-Gunner 18% | Generator-Gunner 18% | Hacker-Skirmisher 17% | Generator-Tank Dominant Class ---------------- Hacker-Skirmisher | -10/Materials Hacker-Skirmisher | -10/Mines Hacker-Skirmisher | -10/Exiles Hacker-Skirmisher | -9/Mines Hacker-Skirmisher | -8/Materials Hacker-Skirmisher | -7/Factory Hacker-Skirmisher | -7/Storage Generator-Gunner | -6/Factory Generator-Gunner | -6/Extension Scavenger-Gunner | -6/Cetus Scavenger-Gunner | -6/Archives Scavenger-Gunner | -6/Hub_04(d) Scavenger-Gunner | -5/Factory Scavenger-Gunner | -5/Upper Caves Scavenger-Gunner | -5/Upper Caves Scavenger-Gunner | -5/Warlord Scavenger-Gunner | -4/Proximity Caves Scavenger-Gunner | -4/Factory Scavenger-Tank | -4/Upper Caves Scavenger-Tank | -4/Upper Caves Scavenger-Tank | -4/Zhirov Scavenger-Tank | -3/Proximity Caves Scavenger-Tank | -3/Research Scavenger-Tank | -3/Quarantine Scavenger-Tank | -2/Research Scavenger-Tank | -2/Testing Generator-Gunner | -2/Section 7 Generator-Tank | -1/Access Generator-Tank | -1/Command Resources | -11 -10 -10 -10 -9 -8 -7 -7 -6 -6 -6 -6 -6 -5 -5 -5 -5 -4 -4 -4 -4 -4 -3 -3 -3 -2 -2 -2 -1 -1 ----------- Run | Scr Mat Min Exi Min Mat Fac Sto Fac Ext Cet Arc Hub Fac Upp Upp War Pro Fac Upp Upp Zhi Pro Res Qua Res Tes Sec Acc Com Matter Collected 3173 | 251 50 . . 8 150 124 218 220 20 130 . 259 20 . . . . 105 35 . . 17 30 287 30 530 414 78 197 Remotely . | . . . . . . . . . . . . . . . . . . . . . . . . . . . . . . Salvage Created 24864 | 145 280 . . . 802 1139 2355 1124 943 854 . 2254 771 129 339 . . 225 . 130 . . 765 831 269 1102 2131 3803 4473 Parts 1216 | 14 24 . . . 43 43 109 43 56 33 5 111 35 2 12 . . 17 . 2 . 4 27 83 2 39 164 158 190 Haulers Intercepted 21 | . . . . . 3 1 6 1 . . . 2 1 . . . . 1 . . . . . . . 1 3 2 . Recyclers Shooed 5 | . . . . . . 1 1 . . . . . 1 . . . . 1 . . . . . . . . . 1 . Parts Field Recycled . | . . . . . . . . . . . . . . . . . . . . . . . . . . . . . . Retrieved Matter . | . . . . . . . . . . . . . . . . . . . . . . . . . . . . . . Parts Self-Destructed . | . . . . . . . . . . . . . . . . . . . . . . . . . . . . . . Prevented . | . . . . . . . . . . . . . . . . . . . . . . . . . . . . . . Kills | -11 -10 -10 -10 -9 -8 -7 -7 -6 -6 -6 -6 -6 -5 -5 -5 -5 -4 -4 -4 -4 -4 -3 -3 -3 -2 -2 -2 -1 -1 ------- Run | Scr Mat Min Exi Min Mat Fac Sto Fac Ext Cet Arc Hub Fac Upp Upp War Pro Fac Upp Upp Zhi Pro Res Qua Res Tes Sec Acc Com Combat Hostiles Destroyed 329 | . 7 . . . 16 17 34 16 13 7 2 24 9 3 9 . . 5 . 1 . 1 9 18 2 12 34 42 48 Guns 217 | . 7 . . . 15 17 31 10 13 7 2 23 7 3 9 . . 5 . 1 . 1 9 16 1 9 6 8 17 Cannons 86 | . . . . . . . . . . . . . . . . . . . . . . . . . 1 3 25 31 26 AOE 1 | . . . . . . . . . . . . 1 . . . . . . . . . . . . . . . . . Classes Destroyed 25 | 2 5 . . . 2 3 3 2 . . . . . . . . . . . 1 . . . . . 3 1 . 3 Worker 12 | . 2 . . . . 3 1 1 . . . 3 1 . . . . . . . . . . . . . . 1 . Builder 12 | . 1 . . . . . 5 1 . . . 3 . . . . . . . . . . . . . 1 . 1 . Tunneler 7 | 3 . . . . 1 . . . . . . 3 . . . . . . . . . . . . . . . . . Hauler 21 | . . . . . 3 1 6 1 . . . 2 1 . . . . 1 . . . . . . . 1 3 2 . Recycler 6 | 1 . . . . . 1 1 . 2 . . . . . . . . . . . . . . . . . . . 1 Mechanic 2 | . . . . . . . . 1 . . . . . . . . . . . . . . . . . . . 1 . Operator 9 | . . . . . . 1 1 1 . . . 1 . . . . . . . . . . 1 . . 1 1 1 1 Drone 3 | . . . . . . . . . . . . . . . . . . . . . . . . . . . . . 3 Watcher 29 | . 1 . . . 3 2 2 4 2 1 . 3 4 . . . . . . . . . . . . 1 2 3 1 Swarmer 23 | . 2 . . . 5 . 2 . 4 . . 3 . . 3 . . . . . . . . . . . 4 . . Grunt 102 | . 5 . . . 8 11 12 8 2 1 . 6 4 1 4 . . 2 . . . . 7 7 . 6 3 13 2 Brawler 5 | . . . . . . . 3 . . . . . . . . . . 1 . . . . . . . . . 1 . Duelist 6 | . . . . . . . 2 . . . . 1 2 . . . . . . . . . . . . . . 1 . Protector 2 | . . . . . . . 1 . . . . 1 . . . . . . . . . . . . . . . . . Researcher 6 | . . . . . . . . . . . . . . . . . . . . . . . . . . 2 4 . . Sentry 41 | . . . . . 3 2 12 3 3 . 2 4 1 . . . . 2 . . . . 2 . 1 . 3 1 2 Specialist 1 | . . . . . . . . . . . . . . . . . . . . . . . . . . 1 . . . Hunter 32 | . . . . . . 2 . 2 4 . . 1 . 1 2 . . . . . . . . 2 . 2 . 14 2 Programmer 38 | . . . . . . 2 2 2 . 1 . 1 2 1 . . . . . . . . . . . 2 15 9 1 Behemoth 10 | . . . . . . . . 1 . . . 1 . . . . . . . . . 1 . . 1 . 1 3 2 Cetus Guard 5 | . . . . . . . . . . 5 . . . . . . . . . . . . . . . . . . . Quarantine Guard 9 | . . . . . . . . . . . . . . . . . . . . . . . . 9 . . . . . S7 Guard 2 | . . . . . . . . . . . . . . . . . . . . . . . . . . . 2 . . M Guard 2 | . . . . . . . . . . . . . . . . . . . . . . . . . . . . . 2 Enhanced Grunt 2 | . . . . . . . . . . . . 2 . . . . . . . . . . . . . . . . . Enhanced Q-Series 25 | . . . . . . . . . . . . . . . . . . . . . . . . . . . . . 25 Lightning 6 | . . . . . . . . . . . . 6 . . . . . . . . . . . . . . . . . Combat Programmer 2 | . . . . . . . . . . . . . . . . . . . . . . . . . . . . . 2 Striker 2 | . . . . . . . . . . . . . . . . . . . . . . . . . . . . . 2 Executioner 6 | . . . . . . . . . . . . . . . . . . . . . . . . . . . 4 . 2 Alpha 7 5 | . . . . . . . . . . . . . . . . . . . . . . . . . . 1 2 . 2 Mutant 1 | . . . . . . . . . . . . . . . . . . . . 1 . . . . . . . . . Best Kill Streak 13 | 4 3 . . . 7 7 13 4 6 3 1 10 4 1 7 . . 3 . 1 . 1 4 7 2 5 7 7 8 Combat Bots Only 9 | . 2 . . . 7 5 9 3 5 3 1 4 3 1 7 . . 3 . 1 . 1 4 7 2 4 6 6 8 Max Kills in Single Turn 9 | 1 1 . . . 1 2 2 1 2 1 1 9 2 1 2 . . 1 . 1 . 1 2 1 1 2 2 2 2 Gunslinging 1 | . . . . . . . 1 . 1 . . 1 . . 1 . . . . . . . 1 . . . 1 . . Exploded 1 | . . . . . . . . . . . . 1 . . . . . . . . . . . . . . . . . Melee . | . . . . . . . . . . . . . . . . . . . . . . . . . . . . . . Uniques/NPCs Destroyed 3 | . . . . . . . . . . 2 . . . . . . . . . . . . . . . . . . 1 Revision 17 (-6/Cetus) A7 (-6/Cetus) MAIN.C Shell (-1/Command) Combat | -11 -10 -10 -10 -9 -8 -7 -7 -6 -6 -6 -6 -6 -5 -5 -5 -5 -4 -4 -4 -4 -4 -3 -3 -3 -2 -2 -2 -1 -1 -------- Run | Scr Mat Min Exi Min Mat Fac Sto Fac Ext Cet Arc Hub Fac Upp Upp War Pro Fac Upp Upp Zhi Pro Res Qua Res Tes Sec Acc Com Damage Taken 7351 | . 259 . . . 272 251 413 344 391 119 24 716 249 19 89 67 . 29 . 9 288 35 20 282 7 228 654 909 1677 Core 5139 | . 156 . . . 191 168 286 237 289 94 21 480 151 11 59 42 . 18 . 6 228 24 16 193 5 163 479 659 1163 Absorbed by Shields 2216 | . . . . . . . 174 144 157 44 9 265 . . . 59 . 27 . 8 . 31 16 259 7 47 . 317 652 Redirected to Core 4458 | . 124 . . . 166 162 215 212 242 81 10 393 139 11 59 37 . 18 . 6 228 24 12 178 5 149 389 595 1003 Regen/Repaired (Parts) 187 | . . . . . . . . . . 17 20 69 42 5 8 . . 5 . . . 3 . 18 . . . . . Core Remaining (%) 94 | 100 . . . 93 90 . 100 . . . . 96 . . . . 100 . . . . 100 . 100 . . 100 . 65 Volleys Fired 839 | 6 24 . . . 45 33 81 35 21 22 2 63 20 5 9 3 . 12 1 8 2 5 13 49 5 34 77 80 184 Largest 5 | 1 2 . . . 4 4 4 5 5 5 5 5 5 5 5 5 . 5 5 5 5 5 5 5 5 5 5 5 5 Hottest 1200 | 40 80 . . . 229 277 284 425 400 1200 400 400 400 400 400 400 . 400 400 400 400 400 400 400 425 493 515 515 490 Shots Fired 3525 | 6 48 . . . 135 122 302 157 105 92 10 313 100 25 45 7 . 60 5 40 10 25 65 206 25 162 263 336 861 Gun 2580 | 6 48 . . . 135 122 302 157 105 92 10 313 100 25 45 7 . 60 5 40 10 25 65 206 20 99 82 79 422 Cannon 945 | . . . . . . . . . . . . . . . . . . . . . . . . . 5 63 181 257 439 Launcher . | . . . . . . . . . . . . . . . . . . . . . . . . . . . . . . Special . | . . . . . . . . . . . . . . . . . . . . . . . . . . . . . . Kinetic 9 | . . . . . . . . . . . . . . . . . . . . . . . . . . . 9 . . Thermal 3516 | 6 48 . . . 135 122 302 157 105 92 10 313 100 25 45 7 . 60 5 40 10 25 65 206 25 162 254 336 861 Explosive . | . . . . . . . . . . . . . . . . . . . . . . . . . . . . . . Electromagnetic . | . . . . . . . . . . . . . . . . . . . . . . . . . . . . . . Robot Hit Streak 143 | 6 33 . . . 24 26 52 32 19 41 4 25 37 48 21 26 . 32 . 28 20 23 24 36 50 18 46 65 143 Robot Miss Streak 3 | . 1 . . . 2 2 2 2 1 1 1 3 1 1 1 . . 1 . 1 . 1 1 2 1 1 1 2 2 Penetration Max . | . . . . . . . . . . . . . . . . . . . . . . . . . . . . . . Secondary Targets 33 | . 1 . . . 2 1 5 2 4 2 . 5 1 . 4 . . . . . . . 2 1 . . 2 . 1 Max Gunslinging Chain 2 | . 1 . . . 1 1 1 1 1 1 . 2 1 . 1 . . . . . . . 1 1 . . 1 . 1 Shots Hit Robots 2410 | 6 39 . . . 106 99 202 110 69 58 3 194 75 16 33 5 . 22 . 22 10 23 42 117 17 72 157 208 705 Core Hits 1034 | 6 17 . . . 43 61 125 44 30 30 3 100 24 5 15 3 . 15 . 3 4 4 25 58 4 34 73 90 218 Critical Kills 13 | . . . . . . . . . 3 2 . . . . . . . . . . . . . . . . 1 3 4 Critical Parts Destroyed 4 | . . . . . . . . . 2 2 . . . . . . . . . . . . . . . . . . . Critical Strikes 59 | . . . . . 9 6 6 17 5 5 . . . . . . . . . . . . . . . . 4 3 4 Burn 41 | . . . . . 9 6 6 17 . . . . . . . . . . . . . . . . . . 3 . . Meltdown 8 | . . . . . . . . . . . . . . . . . . . . . . . . . . . 1 3 4 Destroy 10 | . . . . . . . . . 5 5 . . . . . . . . . . . . . . . . . . . Melee Attacks . | . . . . . . . . . . . . . . . . . . . . . . . . . . . . . . Impact . | . . . . . . . . . . . . . . . . . . . . . . . . . . . . . . Slashing . | . . . . . . . . . . . . . . . . . . . . . . . . . . . . . . Piercing . | . . . . . . . . . . . . . . . . . . . . . . . . . . . . . . Sneak Attacks . | . . . . . . . . . . . . . . . . . . . . . . . . . . . . . . Combat Hostiles . | . . . . . . . . . . . . . . . . . . . . . . . . . . . . . . Follow-up Attacks . | . . . . . . . . . . . . . . . . . . . . . . . . . . . . . . Damage Inflicted 85771 | 72 448 . . . 1508 1984 4363 2076 1881 1700 102 7323 2397 579 1177 109 . 831 . 478 344 816 1333 4520 791 2868 7184 10812 30075 Guns 53633 | 65 436 . . . 1508 1958 4316 2076 1844 1700 101 5988 2397 563 1007 109 . 831 . 478 344 762 1333 4520 597 1867 2218 2307 14308 Cannons 30279 | . . . . . . . . . . . . . . . . . . . . . . . . . 194 1001 4966 8377 15741 Explosions 1484 | . . . . . . . . . . . . 1314 . . 170 . . . . . . . . . . . . . . Melee . | . . . . . . . . . . . . . . . . . . . . . . . . . . . . . . Ramming 375 | 7 12 . . . . 26 47 . 37 . 1 21 . 16 . . . . . . . 54 . . . . . 128 26 Kinetic . | . . . . . . . . . . . . . . . . . . . . . . . . . . . . . . Thermal 84082 | 65 436 . . . 1508 1958 4316 2076 1844 1700 101 5988 2397 563 1177 109 . 831 . 478 344 762 1333 4520 791 2868 7184 10684 30049 Explosive . | . . . . . . . . . . . . . . . . . . . . . . . . . . . . . . Electromagnetic 1314 | . . . . . . . . . . . . 1314 . . . . . . . . . . . . . . . . . Impact . | . . . . . . . . . . . . . . . . . . . . . . . . . . . . . . Slashing . | . . . . . . . . . . . . . . . . . . . . . . . . . . . . . . Piercing . | . . . . . . . . . . . . . . . . . . . . . . . . . . . . . . Highest Corruption 10 | . 1 1 1 1 . . 1 . . 2 2 10 . . . 1 1 . . . . . . 1 . 1 2 . 1 Average Corruption 1 | . 1 1 1 1 . . 1 . . 2 2 5 . . . 1 1 . . . . . . 1 . 1 1 . 1 Corruption Purged . | . . . . . . . . . . . . . . . . . . . . . . . . . . . . . . Corruption Blocked . | . . . . . . . . . . . . . . . . . . . . . . . . . . . . . . Effects 96 | . 4 1 2 1 . . 1 . . 8 1 35 . . . . 4 . . . . . . 9 . 1 19 . 10 Message Errors 24 | . 2 . . 1 . . . . . 2 . 10 . . . . 2 . . . . . . . . . 5 . 2 Matter Fused 26 | . . 1 . . . . 1 . . . . 10 . . . . . . . . . . . 5 . . 5 . 4 Heat Flow Errors 7 | . 1 . . . . . . . . 1 . 2 . . . . . . . . . . . . . . 2 . 1 Energy Discharges 12 | . . . 1 . . . . . . 1 . 4 . . . . 1 . . . . . . 2 . . 3 . . Parts Rejected 2 | . . . . . . . . . . . 1 1 . . . . . . . . . . . . . . . . . Data Loss (minor) 7 | . . . . . . . . . . . . 2 . . . . 1 . . . . . . 1 . 1 1 . 1 Data Loss (major) 5 | . 1 . 1 . . . . . . . . 2 . . . . . . . . . . . . . . 1 . . Misfires 6 | . . . . . . . . . . 1 . . . . . . . . . . . . . 1 . . 2 . 2 Alerts 3 | . . . . . . . . . . 2 . 1 . . . . . . . . . . . . . . . . . Misdirections 1 | . . . . . . . . . . . . 1 . . . . . . . . . . . . . . . . . Weapon Failures 3 | . . . . . . . . . . 1 . 2 . . . . . . . . . . . . . . . . . Overload Shots 6 | . . . . . . . . . . 5 . . . . . 1 . . . . . . . . . . . . . Overflow Damage 818 | . . . . . . . . . . . . 55 . . . . . . . . . 34 . . . 116 133 149 331 Projectiles 710 | . . . . . . . . . . . . . . . . . . . . . . . . . . 116 133 130 331 Explosions 55 | . . . . . . . . . . . . 55 . . . . . . . . . . . . . . . . . Melee 53 | . . . . . . . . . . . . . . . . . . . . . . 34 . . . . . 19 . Knockbacks 5 | 1 . . . . . . 1 . 1 . . 1 . . . . . . . . . . . . . . . . 1 Impact 5 | 1 . . . . . . 1 . 1 . . 1 . . . . . . . . . . . . . . . . 1 Kinetic . | . . . . . . . . . . . . . . . . . . . . . . . . . . . . . . Secondary . | . . . . . . . . . . . . . . . . . . . . . . . . . . . . . . Self-Inflicted Damage 132 | . . . . . . . . . . . . 132 . . . . . . . . . . . . . . . . . Shots 2 | . . . . . . . . . . . . 2 . . . . . . . . . . . . . . . . . Rammed . | . . . . . . . . . . . . . . . . . . . . . . . . . . . . . . Targets Rammed 25 | 3 1 . . . . 5 5 . 2 . 1 2 . 1 . . . . . . . 1 . . . . . 3 1 Kicked 25 | 3 1 . . . . 5 5 . 2 . 1 2 . 1 . . . . . . . 1 . . . . . 3 1 Crushed . | . . . . . . . . . . . . . . . . . . . . . . . . . . . . . . Highest Temperature 869 | . 97 . . . 204 299 304 180 132 869 99 330 270 168 183 135 . 175 57 171 114 233 233 186 48 428 226 69 69 Average Temperature 76 | . 26 . . . 55 97 74 71 43 139 52 84 96 87 67 58 . 62 38 63 57 105 71 66 32 108 80 68 65 Received Heat Transfer 1390 | . 207 . . . 162 120 249 98 62 6 6 127 99 . 36 . . 21 . . . 5 9 18 4 20 9 84 48 Effects 8 | . . . . . . 1 1 . . 5 . 1 . . . . . . . . . . . . . . . . . Shutdowns 4 | . . . . . . . . . . 3 . 1 . . . . . . . . . . . . . . . . . Energy Bleed 1 | . . . . . . 1 . . . . . . . . . . . . . . . . . . . . . . . Matter Decay 1 | . . . . . . . . . . 1 . . . . . . . . . . . . . . . . . . . Short Circuit 1 | . . . . . . . 1 . . . . . . . . . . . . . . . . . . . . . . Damage (major) 1 | . . . . . . . . . . 1 . . . . . . . . . . . . . . . . . . . Siege Activations . | . . . . . . . . . . . . . . . . . . . . . . . . . . . . . . Robots Corrupted 3 | . . . . . . . . . . . . 3 . . . . . . . . . . . . . . . . . Combat Hostiles . | . . . . . . . . . . . . . . . . . . . . . . . . . . . . . . Parts Fried 11 | . . . . . . . . . . 1 . 9 . 1 . . . . . . . . . . . . . . . Impact Corruptions 3 | . . . . . . . . . . . . . . . . . . . . . . 1 . . . . . 2 . Robots Melted 29 | . . . . . 1 . 3 9 . . . . 2 . . . . . . . . . . 2 . . 3 4 5 Combat Hostiles 25 | . . . . . 1 . 3 6 . . . . 2 . . . . . . . . . . 2 . . 3 3 5 Parts Melted 264 | . 1 . . . 13 17 32 33 11 6 1 8 13 1 7 . . 2 . 3 . 1 4 10 4 11 33 19 34 Heat Transferred 87518 | 150 975 . . . 4231 4779 8954 6654 2590 1953 111 5858 2849 592 1381 91 . 962 . 592 90 851 1554 4329 629 2701 5898 7461 21283 Parts Sabotaged . | . . . . . . . . . . . . . . . . . . . . . . . . . . . . . . Parts Stolen . | . . . . . . . . . . . . . . . . . . . . . . . . . . . . . . Parts Stripped . | . . . . . . . . . . . . . . . . . . . . . . . . . . . . . . Power Chain Reactions 1 | . . . . . . . . . . . . 1 . . . . . . . . . . . . . . . . . Missiles Intercepted 19 | . . . . . . . . . . . . . . . . . . . . . . . . . . . . . 19 Alert | -11 -10 -10 -10 -9 -8 -7 -7 -6 -6 -6 -6 -6 -5 -5 -5 -5 -4 -4 -4 -4 -4 -3 -3 -3 -2 -2 -2 -1 -1 ------- Run | Scr Mat Min Exi Min Mat Fac Sto Fac Ext Cet Arc Hub Fac Upp Upp War Pro Fac Upp Upp Zhi Pro Res Qua Res Tes Sec Acc Com Peak Influence 1252 | 20 83 15 . . 266 292 398 269 523 290 121 988 476 . . . . 205 . . . . 306 235 91 258 635 1252 768 Initial 468 | . 9 15 . . . 33 56 55 81 . . 28 283 . . . . . . . . . 15 128 4 . 44 49 468 Average 200 | 7 30 15 . . 78 94 152 107 115 132 99 417 280 . . . . 60 . . . . 148 101 9 68 344 473 398 Maximum Alert Level 4 | . . . . . 1 1 1 1 2 1 . 3 2 . . . . 1 . . . . 1 1 . 1 2 4 3 Low Security (%) 65 | 100 100 100 . 100 88 83 75 88 80 70 100 29 16 . . . . 97 . . . . 69 84 100 93 17 42 37 Level 1 17 | . . . . . 11 16 24 11 9 29 . 13 74 . . . . 2 . . . . 30 15 . 6 46 11 17 Level 2 13 | . . . . . . . . . 10 . . 44 8 . . . . . . . . . . . . . 35 15 42 Level 3 2 | . . . . . . . . . . . . 12 . . . . . . . . . . . . . . . 20 3 Level 4 . | . . . . . . . . . . . . . . . . . . . . . . . . . . . . 10 . Level 5 . | . . . . . . . . . . . . . . . . . . . . . . . . . . . . . . High Security . | . . . . . . . . . . . . . . . . . . . . . . . . . . . . . . Max Security . | . . . . . . . . . . . . . . . . . . . . . . . . . . . . . . Squads Dispatched 71 | . 1 . . . 3 8 7 5 3 . . 6 2 . . . . 1 . . . . 4 1 2 8 6 9 5 Investigation 17 | . 1 . . . . 3 1 1 3 . . 1 . . . . . . . . . . 1 1 . 1 1 3 . Extermination 21 | . . . . . . 1 2 2 . . . 1 1 . . . . . . . . . 1 . . 3 5 2 3 Reinforcement 21 | . . . . . 3 1 2 2 . . . 3 1 . . . . 1 . . . . 2 . 2 3 . . 1 Assault 9 | . . . . . . . 2 . . . . 1 . . . . . . . . . . . . . 1 . 4 1 Garrison 3 | . . . . . . 3 . . . . . . . . . . . . . . . . . . . . . . . Intercept . | . . . . . . . . . . . . . . . . . . . . . . . . . . . . . . Searches Triggered . | . . . . . . . . . . . . . . . . . . . . . . . . . . . . . . Construction Impeded 3 | . . . . . . . . . . . . 2 1 . . . . . . . . . . . . . . . . Haulers Reinforced 4 | . . . . . . 1 . 1 . . . . . . . . . . . . . . . . 1 1 . . . Active Scanning Responses . | . . . . . . . . . . . . . . . . . . . . . . . . . . . . . . Cargo Convoy Interrupts . | . . . . . . . . . . . . . . . . . . . . . . . . . . . . . . Stealth | -11 -10 -10 -10 -9 -8 -7 -7 -6 -6 -6 -6 -6 -5 -5 -5 -5 -4 -4 -4 -4 -4 -3 -3 -3 -2 -2 -2 -1 -1 --------- Run | Scr Mat Min Exi Min Mat Fac Sto Fac Ext Cet Arc Hub Fac Upp Upp War Pro Fac Upp Upp Zhi Pro Res Qua Res Tes Sec Acc Com Distress Signals 27 | . . . . . 3 3 1 2 . 2 . 3 . . . . . . . . . . . . 2 . 2 3 6 Communications Jammed . | . . . . . . . . . . . . . . . . . . . . . . . . . . . . . . Distress Signals . | . . . . . . . . . . . . . . . . . . . . . . . . . . . . . . Times Spotted 471 | . 8 . . . 21 20 40 26 17 12 5 40 13 3 8 16 . 8 . 1 3 1 10 19 3 19 41 62 75 Peak Tracking Total 13 | . 2 . . . 6 5 9 3 3 5 2 4 3 1 4 13 . 3 . 1 3 1 5 6 2 4 7 8 9 Tactical Retreats 9 | . . . . . . . . . . . . 2 . . . 2 . . . . . . . . . 1 2 2 . Traps | -11 -10 -10 -10 -9 -8 -7 -7 -6 -6 -6 -6 -6 -5 -5 -5 -5 -4 -4 -4 -4 -4 -3 -3 -3 -2 -2 -2 -1 -1 ------- Run | Scr Mat Min Exi Min Mat Fac Sto Fac Ext Cet Arc Hub Fac Upp Upp War Pro Fac Upp Upp Zhi Pro Res Qua Res Tes Sec Acc Com Traps Triggered 24 | . 2 . . . . 1 6 3 . . . 1 1 . . . . . . . . . . . . 4 . 6 . Indirectly . | . . . . . . . . . . . . . . . . . . . . . . . . . . . . . . Trap Hack Attempts . | . . . . . . . . . . . . . . . . . . . . . . . . . . . . . . Triggered . | . . . . . . . . . . . . . . . . . . . . . . . . . . . . . . Disarmed 14 | . . . . . . . . . . . . . . . . . . . . . . . . . . 4 10 . . Reprogrammed 22 | . . . . . . . . . . . . . 4 . . . . . . . . . . 14 . . . . 4 Reused 2 | . . . . . . . . . . . . . . . . . . . . . . . . . . . . . 2 Traps Extracted . | . . . . . . . . . . . . . . . . . . . . . . . . . . . . . . Installed . | . . . . . . . . . . . . . . . . . . . . . . . . . . . . . . Triggered 11 | . . . . . . . . . . . . . . 1 . 10 . . . . . . . . . . . . . Machines | -11 -10 -10 -10 -9 -8 -7 -7 -6 -6 -6 -6 -6 -5 -5 -5 -5 -4 -4 -4 -4 -4 -3 -3 -3 -2 -2 -2 -1 -1 ---------- Run | Scr Mat Min Exi Min Mat Fac Sto Fac Ext Cet Arc Hub Fac Upp Upp War Pro Fac Upp Upp Zhi Pro Res Qua Res Tes Sec Acc Com Machines Disabled 98 | . . . . . . . 4 . 4 2 . 35 . . 3 1 . 2 2 1 . . 2 10 . 14 11 4 3 Max in Single Turn 9 | . . . . . . . 1 . 1 1 . 9 . . 2 1 . 1 2 1 . . 2 2 . 3 1 1 2 Garrison Access 6 | . . . . . . . . . . . . 1 . . . . . . . . . . . 1 2 1 . 1 . Phase Generator 1 | . . . . . . . . . . . . . . . . . . . . . . . . . . . . . 1 Network Hub 4 | . . . . . . . . . . . . 4 . . . . . . . . . . . . . . . . . Machines Sabotaged . | . . . . . . . . . . . . . . . . . . . . . . . . . . . . . . Garrisons Compromised . | . . . . . . . . . . . . . . . . . . . . . . . . . . . . . . Overloaded Fab Kills . | . . . . . . . . . . . . . . . . . . . . . . . . . . . . . . Hacking | -11 -10 -10 -10 -9 -8 -7 -7 -6 -6 -6 -6 -6 -5 -5 -5 -5 -4 -4 -4 -4 -4 -3 -3 -3 -2 -2 -2 -1 -1 --------- Run | Scr Mat Min Exi Min Mat Fac Sto Fac Ext Cet Arc Hub Fac Upp Upp War Pro Fac Upp Upp Zhi Pro Res Qua Res Tes Sec Acc Com Machines Accessed 89 | . 3 . . 1 1 7 7 4 11 1 1 3 3 1 1 1 . 2 . . . . 2 6 1 6 11 7 9 Terminals 72 | . 3 . . . 1 4 7 3 11 1 . 3 3 . 1 . . 1 . . . . 2 5 . 4 10 4 9 Fabricators 7 | . . . . . . 2 . 1 . . . . . . . . . 1 . . . . . . . 1 . 2 . Repair Stations . | . . . . . . . . . . . . . . . . . . . . . . . . . . . . . . Recycling Units . | . . . . . . . . . . . . . . . . . . . . . . . . . . . . . . Scanalyzers 1 | . . . . . . . . . . . . . . . . . . . . . . . . . . . 1 . . Garrison Access 5 | . . . . . . 1 . . . . . . . . . . . . . . . . . 1 1 1 . 1 . Total Hacks 316 | . 10 . . 1 5 12 14 9 21 1 1 7 20 8 4 1 . 2 . . . . 11 38 3 25 54 20 49 Successful 148 | . 5 . . 1 3 7 7 4 7 1 1 3 4 8 4 1 . 1 . . . . 2 23 1 14 25 7 19 Failed 168 | . 5 . . . 2 5 7 5 14 . . 4 16 . . . . 1 . . . . 9 15 2 11 29 13 30 Catastrophic 31 | . 1 . . . . 1 1 . 2 . . . 1 . . . . 1 . . . . 4 3 . 3 9 2 3 Database Lockouts . | . . . . . . . . . . . . . . . . . . . . . . . . . . . . . . Manual 143 | . 4 . . . 2 11 4 7 4 1 . 3 13 . . . . 2 . . . . 3 14 . 12 30 8 25 Terminals 277 | . 10 . . . 5 8 14 6 21 1 . 7 20 . 4 . . 1 . . . . 11 36 . 22 53 9 49 Fabricators 18 | . . . . . . 3 . 3 . . . . . . . . . 1 . . . . . . . 2 . 9 . Repair Stations . | . . . . . . . . . . . . . . . . . . . . . . . . . . . . . . Recycling Units . | . . . . . . . . . . . . . . . . . . . . . . . . . . . . . . Scanalyzers 1 | . . . . . . . . . . . . . . . . . . . . . . . . . . . 1 . . Garrison Access 9 | . . . . . . 1 . . . . . . . . . . . . . . . . . 2 3 1 . 2 . Terminal Hacks 111 | . 5 . . 1 2 4 7 2 7 1 1 3 4 8 4 1 . . . . . . 2 19 . 8 17 3 12 Record 14 | . . . . . . . . . . . 1 . . 8 4 . . . . . . . . 1 . . . . . Part Schematic 3 | . . . . . . . 1 . . . . . . . . . . . . . . . . 1 . 1 . . . Robot Analysis 5 | . . . . . . . . . . . . . . . . . . . . . . . . . . . 2 . 3 Prototype ID Bank 5 | . . . . . . . 1 . . . . . . . . . . . . . . . . 2 . . 2 . . Open Door 18 | . . . . 1 . . 3 . 5 1 . . . . . 1 . . . . . . . . . . 3 3 1 Branch Access Points 4 | . . . . . . 1 . 1 . . . . 1 . . . . . . . . . 1 . . . . . . Emergency Access Points 2 | . 1 . . . . . . . . . . . . . . . . . . . . . . . . 1 . . . Machine Index 2 | . . . . . . . . . . . . . . . . . . . . . . . . . . 1 . . 1 Terminal Index 1 | . . . . . . . . . . . . . . . . . . . . . . . . . . . 1 . . Garrison Index 1 | . . . . . . . . . . . . . . . . . . . . . . . . 1 . . . . . Alert Level 2 | . . . . . . . . . . . . . . . . . . . . . . . . 1 . . . . 1 Unreport Threat 24 | . 3 . . . 2 2 2 1 2 . . 3 1 . . . . . . . . . . 4 . 2 . . 2 Locate Traps 1 | . . . . . . . . . . . . . . . . . . . . . . . . 1 . . . . . Disarm Traps 9 | . . . . . . . . . . . . . . . . . . . . . . . . . . 2 7 . . Reprogram Traps 9 | . . . . . . . . . . . . . 2 . . . . . . . . . . 5 . . . . 2 Security Status 1 | . . . . . . . . . . . . . . . . . . . . . . . . 1 . . . . . Recall Investigation 1 | . . . . . . . . . . . . . . . . . . . . . . . . . . . 1 . . Recall Extermination 2 | . . . . . . . . . . . . . . . . . . . . . . . 1 . . . 1 . . Registered Prototypes 1 | . . . . . . . . . . . . . . . . . . . . . . . . 1 . . . . . Zone Layout 3 | . 1 . . . . 1 . . . . . . . . . . . . . . . . . 1 . . . . . Protovariant Controls 1 | . . . . . . . . . . . . . . . . . . . . . . . . . . 1 . . . Disengage Seal 2 | . . . . . . . . . . . . . . . . . . . . . . . . . . . . . 2 Fabricator Hacks 6 | . . . . . . . . 1 . . . . . . . . . . . . . . . . . 2 . 3 . Network Status 1 | . . . . . . . . . . . . . . . . . . . . . . . . . . . . 1 . Load Schematic 2 | . . . . . . . . . . . . . . . . . . . . . . . . . . 1 . 1 . Build 3 | . . . . . . . . 1 . . . . . . . . . . . . . . . . . 1 . 1 . Repair Station Hacks . | . . . . . . . . . . . . . . . . . . . . . . . . . . . . . . Recycling Unit Hacks . | . . . . . . . . . . . . . . . . . . . . . . . . . . . . . . Scanalyzer 1 | . . . . . . . . . . . . . . . . . . . . . . . . . . . 1 . . Insert Component 1 | . . . . . . . . . . . . . . . . . . . . . . . . . . . 1 . . Garrison Access Hacks 3 | . . . . . . . . . . . . . . . . . . . . . . . . 1 1 1 . . . Seal Access 3 | . . . . . . . . . . . . . . . . . . . . . . . . 1 1 1 . . . Unauthorized Hacks 27 | . . . . . 1 3 . 1 . . . . . . . . . 1 . . . . . 3 . 3 7 1 7 Terminals 21 | . . . . . 1 . . . . . . . . . . . . . . . . . . 3 . 3 7 . 7 Assimilate 1 | . . . . . 1 . . . . . . . . . . . . . . . . . . . . . . . . Botnet 18 | . . . . . . . . . . . . . . . . . . . . . . . . 2 . 3 7 . 6 Detonate 1 | . . . . . . . . . . . . . . . . . . . . . . . . . . . . . 1 Operators 1 | . . . . . . . . . . . . . . . . . . . . . . . . 1 . . . . . Fabricators 5 | . . . . . . 2 . 1 . . . . . . . . . 1 . . . . . . . . . 1 . Liberate 5 | . . . . . . 2 . 1 . . . . . . . . . 1 . . . . . . . . . 1 . Repair Stations . | . . . . . . . . . . . . . . . . . . . . . . . . . . . . . . Recycling Units . | . . . . . . . . . . . . . . . . . . . . . . . . . . . . . . Scanalyzers . | . . . . . . . . . . . . . . . . . . . . . . . . . . . . . . Garrison Access 1 | . . . . . . 1 . . . . . . . . . . . . . . . . . . . . . . . Reprogram 1 | . . . . . . 1 . . . . . . . . . . . . . . . . . . . . . . . Data Cores Recovered 4 | . . . . . . 1 . . . . . 1 . . . . . . . . . . . . . 1 . . 1 Used 3 | . . . . . . 1 . . . . . . . . . . . . . . . . . . . 1 . . 1 Hacking Detections 68 | . 3 . . . 1 6 6 3 8 . . 3 2 . 1 . . 2 . . . . 2 6 1 5 8 5 6 Full Trace Events 11 | . 1 . . . . 1 1 . 3 . . 1 . . . . . . . . . . 1 1 . . 1 1 . Feedback Events . | . . . . . . . . . . . . . . . . . . . . . . . . . . . . . . Feedback Blocked . | . . . . . . . . . . . . . . . . . . . . . . . . . . . . . . Robot Schematics Acquired 6 | . . . . . . . . . . . . . . . . . . . . . . . . 5 . . 1 . . Robots Built 2 | . . . . . . . . 2 . . . . . . . . . . . . . . . . . . . . . Authchips . | . . . . . . . . . . . . . . . . . . . . . . . . . . . . . . Time 152 | . . . . . . . . 152 . . . . . . . . . . . . . . . . . . . . . Total Robot Build Rating 10 | . . . . . . . . 10 . . . . . . . . . . . . . . . . . . . . . Part Schematics Acquired 28 | . . . . . . . 1 . . . . . . . . . . . . . . . . 13 . 7 7 . . Parts Built 2 | . . . . . . . . . . . . . . . . . . . . . . . . . . 1 . 1 . Authchips . | . . . . . . . . . . . . . . . . . . . . . . . . . . . . . . Time 130 | . . . . . . . . . . . . . . . . . . . . . . . . . . 62 . 68 . Total Part Build Rating 15 | . . . . . . . . . . . . . . . . . . . . . . . . . . 7 . 8 . Parts Repaired . | . . . . . . . . . . . . . . . . . . . . . . . . . . . . . . Time . | . . . . . . . . . . . . . . . . . . . . . . . . . . . . . . Parts Recycled . | . . . . . . . . . . . . . . . . . . . . . . . . . . . . . . Recycled Matter . | . . . . . . . . . . . . . . . . . . . . . . . . . . . . . . Retrieved Matter . | . . . . . . . . . . . . . . . . . . . . . . . . . . . . . . Retrieved Components . | . . . . . . . . . . . . . . . . . . . . . . . . . . . . . . Parts Scanalyzed . | . . . . . . . . . . . . . . . . . . . . . . . . . . . . . . Part Schematics Acquired . | . . . . . . . . . . . . . . . . . . . . . . . . . . . . . . Parts Damaged . | . . . . . . . . . . . . . . . . . . . . . . . . . . . . . . Bothacking | -11 -10 -10 -10 -9 -8 -7 -7 -6 -6 -6 -6 -6 -5 -5 -5 -5 -4 -4 -4 -4 -4 -3 -3 -3 -2 -2 -2 -1 -1 ------------ Run | Scr Mat Min Exi Min Mat Fac Sto Fac Ext Cet Arc Hub Fac Upp Upp War Pro Fac Upp Upp Zhi Pro Res Qua Res Tes Sec Acc Com Used RIF Installer . | . . . . . . . . . . . . . . . . . . . . . . . . . . . . . . Robots Hacked . | . . . . . . . . . . . . . . . . . . . . . . . . . . . . . . Non-combat . | . . . . . . . . . . . . . . . . . . . . . . . . . . . . . . Combat . | . . . . . . . . . . . . . . . . . . . . . . . . . . . . . . Robot Hacks Applied . | . . . . . . . . . . . . . . . . . . . . . . . . . . . . . . Relay Couplers Released . | . . . . . . . . . . . . . . . . . . . . . . . . . . . . . . Fabnet Peak Effective % . | . . . . . . . . . . . . . . . . . . . . . . . . . . . . . . Robots Rewired 5 | . . . . . . . . . . . . . . . . . . . . 4 . . . . . 1 . . . Allies Hacked . | . . . . . . . . . . . . . . . . . . . . . . . . . . . . . . Hacks Repelled . | . . . . . . . . . . . . . . . . . . . . . . . . . . . . . . Allies | -11 -10 -10 -10 -9 -8 -7 -7 -6 -6 -6 -6 -6 -5 -5 -5 -5 -4 -4 -4 -4 -4 -3 -3 -3 -2 -2 -2 -1 -1 -------- Run | Scr Mat Min Exi Min Mat Fac Sto Fac Ext Cet Arc Hub Fac Upp Upp War Pro Fac Upp Upp Zhi Pro Res Qua Res Tes Sec Acc Com Total Allies 34 | . . . . . . 5 2 7 5 5 . . . . . . . 5 . 4 . . . . . 1 . . . Largest Group 9 | . . . . . . 3 2 6 9 7 6 6 . . . . . 5 . 4 4 . . . . 1 . . . Highest-Rated Group 660 | . . . . . . 48 62 155 384 660 508 508 . . . . . 236 . 133 133 . . . . 79 . . . Highest-Rated Ally 159 | . . . . . . 16 31 31 159 159 96 96 . . . . . 49 . 46 46 . . . . 79 . . . Total Orders 2 | . . . . . 1 . . . . . . . . . . . . . . . 1 . . . . . . . . AID 1 | . . . . . . . . . . . . . . . . . . . . . 1 . . . . . . . . EXPLORE 1 | . . . . . 1 . . . . . . . . . . . . . . . . . . . . . . . . Ally Attacks 354 | . . . . . . 27 8 65 88 45 12 79 . . . . . 12 . . 4 . . . . 14 . . . Total Damage 8069 | . . . . . . 277 170 835 1635 1265 505 2225 . . . . . 362 . . 105 . . . . 690 . . . Kills 39 | . . . . . . 3 1 3 7 5 2 12 . . . . . 3 . . . . . . . 3 . . . Allies Corrupted 5 | . . . . . . . . . . . . 3 . . . . . . . . 1 . . . . 1 . . . Allies Melted 5 | . . . . . . . . . . . . . . . . . . . . . . . . . . . . . 5 Intel | -11 -10 -10 -10 -9 -8 -7 -7 -6 -6 -6 -6 -6 -5 -5 -5 -5 -4 -4 -4 -4 -4 -3 -3 -3 -2 -2 -2 -1 -1 ------- Run | Scr Mat Min Exi Min Mat Fac Sto Fac Ext Cet Arc Hub Fac Upp Upp War Pro Fac Upp Upp Zhi Pro Res Qua Res Tes Sec Acc Com Robot Analysis Total 5 | . . . . . . . . . . . . . . . . . . . . . . . . . . . 2 . 3 Derelict Logs Recovered 6 | . . . . . . . . . . . . . . 2 . . 1 . 3 . . . . . . . . . . Drone Launches 16 | . . . . . 16 . . . . . . . . . . . . . . . . . . . . . . . . Drone Recoveries . | . . . . . . . . . . . . . . . . . . . . . . . . . . . . . . Exploration | -11 -10 -10 -10 -9 -8 -7 -7 -6 -6 -6 -6 -6 -5 -5 -5 -5 -4 -4 -4 -4 -4 -3 -3 -3 -2 -2 -2 -1 -1 ------------- Run | Scr Mat Min Exi Min Mat Fac Sto Fac Ext Cet Arc Hub Fac Upp Upp War Pro Fac Upp Upp Zhi Pro Res Qua Res Tes Sec Acc Com Turns Passed 21207 | 107 438 62 204 151 666 1166 1518 1483 1211 499 144 1250 407 361 298 363 301 391 503 389 217 283 329 1463 470 1491 1607 1258 2177 Spaces Moved 14936 | 72 294 52 171 120 316 754 1006 1066 922 283 68 803 321 344 263 339 294 336 499 328 187 253 272 936 431 1006 1115 803 1282 Core 4 | 4 . . . . . . . . . . . . . . . . . . . . . . . . . . . . . Treads . | . . . . . . . . . . . . . . . . . . . . . . . . . . . . . . Legs 14932 | 68 294 52 171 120 316 754 1006 1066 922 283 68 803 321 344 263 339 294 336 499 328 187 253 272 936 431 1006 1115 803 1282 Wheels . | . . . . . . . . . . . . . . . . . . . . . . . . . . . . . . Hover . | . . . . . . . . . . . . . . . . . . . . . . . . . . . . . . Flight . | . . . . . . . . . . . . . . . . . . . . . . . . . . . . . . Fastest Speed 50 | 50 120 120 120 120 120 123 122 115 120 120 190 100 100 100 100 100 100 100 100 100 100 100 100 100 100 103 115 113 92 Average Speed 112 | 116 120 120 120 125 122 123 122 120 120 124 190 116 100 100 100 100 100 100 100 100 100 100 100 100 101 108 115 114 112 Slowest Speed 195 | 120 190 120 120 190 123 123 195 122 120 190 190 190 100 100 100 100 100 100 100 100 100 100 100 100 103 176 115 115 115 Overloaded Moves . | . . . . . . . . . . . . . . . . . . . . . . . . . . . . . . Propulsion Burnouts . | . . . . . . . . . . . . . . . . . . . . . . . . . . . . . . Robots Hopped . | . . . . . . . . . . . . . . . . . . . . . . . . . . . . . . Cave-ins Triggered 1 | . . . . . . . . . . . . . . . . . . . . . . . . . . . . 1 . Teleports 1 | . . . . . . . . . . . . . . . . . . . . . . . . . . . 1 . . Exploration Rate (%) 52 | 5 62 11 59 42 81 25 93 35 96 75 73 77 14 61 55 54 50 13 66 66 83 54 10 86 13 87 66 25 52 Regions Visited 29 Branch Regions 20 Pre-discovered Areas 4 | . . . . . . . 1 . . . . . . 2 1 . . . . . . . . . . . . . . Known Exits Taken 29 | 1 1 1 1 1 1 1 1 1 1 1 1 1 1 1 1 1 1 1 1 1 1 1 1 1 1 1 1 1 . Unknown Exits Taken . | . . . . . . . . . . . . . . . . . . . . . . . . . . . . . . Scrap Searched 10 | . . . . . . . . . . . . . . 3 1 . . . 4 1 . 1 . . . . . . . Spaces Dug 60 | . . . . . . . . . . . . 2 . . . . . 6 . 7 . . 3 15 . 12 . 15 . Terrain Destroyed 1107 | . . . . . . . . . . 5 3 705 11 3 27 . . 8 1 12 . 1 10 30 3 52 25 71 140 Melee . | . . . . . . . . . . . . . . . . . . . . . . . . . . . . . . Projectile 351 | . . . . . . . . . . 5 3 35 11 3 5 . . 8 1 12 . 1 10 30 3 52 25 71 76 AOE 756 | . . . . . . . . . . . . 670 . . 22 . . . . . . . . . . . . . 64 Terrain Rammed . | . . . . . . . . . . . . . . . . . . . . . . . . . . . . . . Walls Destroyed . | . . . . . . . . . . . . . . . . . . . . . . . . . . . . . . Machines Disabled . | . . . . . . . . . . . . . . . . . . . . . . . . . . . . . . Actions | -11 -10 -10 -10 -9 -8 -7 -7 -6 -6 -6 -6 -6 -5 -5 -5 -5 -4 -4 -4 -4 -4 -3 -3 -3 -2 -2 -2 -1 -1 --------- Run | Scr Mat Min Exi Min Mat Fac Sto Fac Ext Cet Arc Hub Fac Upp Upp War Pro Fac Upp Upp Zhi Pro Res Qua Res Tes Sec Acc Com Total 17915 | 86 328 51 170 122 495 941 1171 1203 985 388 77 989 363 350 278 360 301 365 500 371 213 271 300 1355 450 1336 1347 1014 1735 Wait 970 | . . . . . 85 90 3 27 8 36 4 13 2 . 1 . . . . 29 9 3 8 290 7 136 46 57 116 Move 14908 | 72 294 51 170 119 315 753 1005 1065 921 282 67 802 320 343 262 338 293 335 498 327 186 252 271 935 430 1005 1114 801 1282 Hop . | . . . . . . . . . . . . . . . . . . . . . . . . . . . . . . Pick Up 79 | . . . . . 3 4 3 5 4 3 . 9 2 1 1 1 1 4 1 . 1 2 2 5 1 6 5 4 11 Fast Attach 226 | 6 5 . . 1 9 12 15 13 3 9 1 13 1 . . 5 1 1 . . . 1 1 24 3 45 27 10 20 Attach 23 | . . . . . 3 1 1 1 . . . 3 . . . 1 . 1 . . 1 . . 1 . 1 5 3 1 Detach 47 | . . . . 2 6 6 1 1 . 1 . 7 . . . 5 . 1 . . . . 1 . 1 5 4 4 2 Swap 45 | . . . . . 2 3 3 8 . . . 3 . . . 2 . 3 . . 1 1 . . . 7 3 4 5 Drop 247 | . . . . . 8 15 17 22 6 11 . 20 2 . . 5 2 4 . . 2 1 2 25 3 42 24 3 33 Fire 839 | 6 24 . . . 45 33 81 35 21 22 2 63 20 5 9 3 . 12 1 8 2 5 13 49 5 34 77 80 184 Melee . | . . . . . . . . . . . . . . . . . . . . . . . . . . . . . . Ram . | . . . . . . . . . . . . . . . . . . . . . . . . . . . . . . Kick 23 | 2 . . . . . 5 5 . 2 . 1 2 . 1 . . . . . . . 1 . . . . . 3 1 Crush . | . . . . . . . . . . . . . . . . . . . . . . . . . . . . . . Escape Stasis 5 | . . . . . . . 4 . . . . . . . . . . . . . . . . . . . . 1 . Rewire 11 | . . . . . . . . . . . . . . . . . . . . 7 . . . . . 4 . . . Trap . | . . . . . . . . . . . . . . . . . . . . . . . . . . . . . . Miscellaneous 492 | . 5 . . . 19 19 33 26 20 24 2 54 16 . 5 . 4 4 . . 11 5 2 26 . 51 42 44 80 Route ------- -11/Scrapyard -10/Materials (discovered 3 exits: *Mat x2 / *Min) -10/Mines -10/Exiles (discovered 2 exits: *Min x2) -9/Mines -8/Materials (discovered 3 exits: *Fac x3) -7/Factory (discovered 6 exits: *Fac x2 / *Sto x2 / Low x2) -7/Storage (discovered 2 exits: *Fac / Rec) -6/Factory (discovered 6 exits: *Fac x2 / *Low x2 / *Ext x2) -6/Extension (discovered 3 exits: *Fac x2 / *Cet) -6/Cetus (discovered 2 exits: *Fac / *Arc) -6/Archives (discovered 2 exits: *Hub x2) -6/Hub_04(d) (discovered 4 exits: *Fac x4) -5/Factory (discovered 3 exits: *Fac / *Upp x2) -5/Upper Caves -5/Upper Caves (discovered 2 exits: *Fac / *War) -5/Warlord -4/Proximity Caves -4/Factory -4/Upper Caves -4/Upper Caves (discovered 2 exits: *Res / *Zhi) -4/Zhirov -3/Proximity Caves -3/Research (discovered 4 exits: Res x2 / *Qua x2) -3/Quarantine -2/Research -2/Testing (discovered 2 exits: *Acc / *Sec) -2/Section 7 -1/Access -1/Command (discovered 2 exits: Sur x2) By MAIN.C's Side History --------- Turn | Location | Event 1 | -11/Scrapyard | Upgraded with Propulsion slot (x1) 1 | -11/Scrapyard | Upgraded with Utility slot (x2) 1 | -11/Scrapyard | Upgraded with Weapon slot (x1) 5 | -11/Scrapyard | Identified exit to Materials 5 | -11/Scrapyard | Discovered exit to Materials (range 16) 108 | -11/Scrapyard | Entered Materials 191 | -10/Materials | Identified exit to Materials 191 | -10/Materials | Discovered exit to Materials (range 13) 303 | -10/Materials | Identified exit to Mines 303 | -10/Materials | Discovered exit to Mines (range 18) 362 | -10/Materials | Discovered exit to Materials (range 10) 440 | -10/Materials | Build established: Hacker-Skirmisher 546 | -10/Materials | Entered Mines 556 | -10/Mines | Identified exit to Exiles 556 | -10/Mines | Discovered exit to Exiles (range 12) 603 | -10/Mines | Deemed a non-threat by the Exiles lab entrance 608 | -10/Mines | Entered Exiles 610 | -10/Exiles | Reached level 2 624 | -10/Exiles | Identified exit to Mines 624 | -10/Exiles | Discovered exit to Mines (range 17) 641 | -10/Exiles | Met 8R-AWN 658 | -10/Exiles | Met EX-HEX 701 | -10/Exiles | Met EX-DEC 727 | -10/Exiles | Upgraded with Propulsion slot (x1) 803 | -10/Exiles | Discovered exit to Mines (range 10) 812 | -10/Exiles | Entered Mines 907 | -9/Mines | A weapon hastily lodged in a ceiling crevice suddenly fell to the ground 929 | -9/Mines | Identified exit to Materials 929 | -9/Mines | Discovered exit to Materials (range 9) 941 | -9/Mines | Found the Drone Emporium 947 | -9/Mines | Found Prototype Device 947 | -9/Mines | Identified Decoy Drone Bay 963 | -9/Mines | Entered Materials 965 | -8/Materials | Reached level 3 965 | -8/Materials | Reached level 4 965 | -8/Materials | Reached level 5 965 | -8/Materials | Reached level 6 1017 | -8/Materials | Identified exit to Factory 1017 | -8/Materials | Discovered exit to Factory (range 77) 1018 | -8/Materials | Discovered exit to Factory (range 66) 1020 | -8/Materials | Discovered exit to Factory (range 104) 1199 | -8/Materials | Upgraded with Weapon slot (x1) 1283 | -8/Materials | Reached level 7 1330 | -8/Materials | Destroyed 7 combat bots 1335 | -8/Materials | Upgraded with Power slot (x1) 1386 | -8/Materials | Upgraded with Weapon slot (x1) 1401 | -8/Materials | Upgraded with Utility slot (x2) 1629 | -8/Materials | Entered Factory 1631 | -7/Factory | Reached level 8 1631 | -7/Factory | Reached level 9 1631 | -7/Factory | Reached level 10 2056 | -7/Factory | Upgraded with Utility slot (x1) 2199 | -7/Factory | Identified exit to Factory 2199 | -7/Factory | Discovered exit to Factory (range 15) 2332 | -7/Factory | Garrison activated, responded to threat 2463 | -7/Factory | Reached level 11 2494 | -7/Factory | Identified exit to Storage 2494 | -7/Factory | Identified exit to Lower Caves 2529 | -7/Factory | Discovered exit to Factory (range 15) 2795 | -7/Factory | Entered Storage 2795 | -7/Storage | Upgraded with Utility slot (x2) 2797 | -7/Storage | Reached level 12 2801 | -7/Storage | Upgraded with Propulsion slot (x1) 2828 | -7/Storage | Met a pair of Derelict thieves 2867 | -7/Storage | Upgraded with Power slot (x1) 2923 | -7/Storage | Reached level 13 2965 | -7/Storage | Destroyed 9 combat bots 3138 | -7/Storage | Reached level 14 3221 | -7/Storage | Discovered exit to Factory (range 15) 3686 | -7/Storage | Identified exit to Recycling 3686 | -7/Storage | Discovered exit to Recycling (range 11) 4020 | -7/Storage | Reached level 15 4160 | -7/Storage | Learned location of Armory (-4) 4313 | -7/Storage | Entered Factory 4315 | -6/Factory | Reached level 16 4315 | -6/Factory | Upgraded with Propulsion slot (x2) 4346 | -6/Factory | Upgraded with Power slot (x1) 4408 | -6/Factory | Found Prototype Processor 4408 | -6/Factory | Identified Exp. Targeting Computer 4578 | -6/Factory | Allied Derelicts emerged from ambush trap array 4759 | -6/Factory | Build established: Generator-Gunner 4786 | -6/Factory | Identified exit to Factory 4786 | -6/Factory | Discovered exit to Factory (range 12) 4948 | -6/Factory | Spotted B-75 Beast 4962 | -6/Factory | Allied Derelicts emerged from ambush trap array 4964 | -6/Factory | Destroyed B-75 Beast 5209 | -6/Factory | Reached level 17 5213 | -6/Factory | Upgraded with Weapon slot (x1) 5450 | -6/Factory | Discovered exit to Factory (range 15) 5543 | -6/Factory | Identified exit to Lower Caves 5543 | -6/Factory | Identified exit to Extension 5721 | -6/Factory | Fabricated E-15 Imp? 5796 | -6/Factory | Entered Extension 5796 | -6/Extension | Accompanied by 4 allies 5798 | -6/Extension | Reached level 18 5804 | -6/Extension | Disrupted transfer network 5843 | -6/Extension | Rescued a captive Derelict 5882 | -6/Extension | Rescued a captive Derelict 5886 | -6/Extension | Rescued a captive Derelict 5931 | -6/Extension | Rescued a captive Derelict 5950 | -6/Extension | Rescued a captive Derelict 6007 | -6/Extension | Rescued A7 6056 | -6/Extension | Spotted B-75 Beast 6063 | -6/Extension | Spotted B-75 Beast 6076 | -6/Extension | Allies destroyed B-75 Beast 6082 | -6/Extension | Allies destroyed B-75 Beast 6134 | -6/Extension | Discovered exit to Factory (range 7) 6153 | -6/Extension | Reached level 19 6185 | -6/Extension | Upgraded with Utility slot (x1) 6460 | -6/Extension | Discovered exit to Factory (range 10) 6461 | -6/Extension | Identified exit to Cetus 6461 | -6/Extension | Discovered exit to Cetus (range 6) 7007 | -6/Extension | Entered Cetus 7007 | -6/Cetus | Accompanied by 5 allies (A7) 7012 | -6/Cetus | Acquired a Cetus Manufacturing Module code from A7 7024 | -6/Cetus | Spotted Cetus Guard 7024 | -6/Cetus | Spotted Cetus Guard 7026 | -6/Cetus | Spotted Cetus Guard 7033 | -6/Cetus | Spotted Cetus Guard 7034 | -6/Cetus | Destroyed Cetus Guard 7037 | -6/Cetus | Allies destroyed Cetus Guard 7038 | -6/Cetus | Allies destroyed Cetus Guard 7040 | -6/Cetus | Destroyed Cetus Guard 7141 | -6/Cetus | Started Cetus Manufacturing Module 7166 | -6/Cetus | Manufactured an Enhanced Grunt 7171 | -6/Cetus | Identified exit to Archives 7171 | -6/Cetus | Discovered exit to Archives (range 17) 7191 | -6/Cetus | Manufactured an Enhanced Grunt 7195 | -6/Cetus | Spotted Cetus Guard 7195 | -6/Cetus | Spotted Cetus Guard 7201 | -6/Cetus | Spotted Cetus Guard 7202 | -6/Cetus | Allies destroyed Cetus Guard 7202 | -6/Cetus | Destroyed Cetus Guard 7202 | -6/Cetus | Spotted Cetus Guard 7211 | -6/Cetus | Destroyed Cetus Guard 7215 | -6/Cetus | Destroyed Cetus Guard 7216 | -6/Cetus | Manufactured an Enhanced Grunt 7219 | -6/Cetus | Discovered exit to Factory (range 18) 7228 | -6/Cetus | Met Revision 17 7241 | -6/Cetus | Manufactured an Enhanced Grunt 7266 | -6/Cetus | Manufactured an Enhanced Grunt 7358 | -6/Cetus | Destroyed Revision 17 7369 | -6/Cetus | Build established: Scavenger-Gunner 7382 | -6/Cetus | Cetus Manufacturing Module disabled 7456 | -6/Cetus | Destroyed A7 7460 | -6/Cetus | Extracted ID and sensor layout for unrecognized location from A7's data core 7471 | -6/Cetus | Found Prototype Protection 7471 | -6/Cetus | Identified Med. Regenerative Plating 7506 | -6/Cetus | Entered Archives 7506 | -6/Archives | Accompanied by 6 allies 7551 | -6/Archives | Identified exit to Hub_04(d) 7551 | -6/Archives | Discovered exit to Hub_04(d) (range 17) 7602 | -6/Archives | Unable to access archive contents 7607 | -6/Archives | Discovered exit to Hub_04(d) (range 16) 7650 | -6/Archives | Entered Hub_04(d) 7650 | -6/Hub_04(d) | Accompanied by 6 allies 7652 | -6/Hub_04(d) | Reached level 20 7671 | -6/Hub_04(d) | Discovered exit to Factory (range 15) 7729 | -6/Hub_04(d) | Discovered exit to Factory (range 13) 7740 | -6/Hub_04(d) | Discovered exit to Factory (range 13) 7949 | -6/Hub_04(d) | Spotted B-75 Beast 7958 | -6/Hub_04(d) | Destroyed B-75 Beast 8141 | -6/Hub_04(d) | Discovered exit to Factory (range 10) 8263 | -6/Hub_04(d) | Network Hub disabled 8317 | -6/Hub_04(d) | Spotted Lightning 8319 | -6/Hub_04(d) | Spotted Lightning 8320 | -6/Hub_04(d) | Spotted Lightning 8337 | -6/Hub_04(d) | Allies destroyed Lightning 8341 | -6/Hub_04(d) | Destroyed Lightning 8406 | -6/Hub_04(d) | Found Prototype Device 8406 | -6/Hub_04(d) | Identified Exp. Phase Shifter 8494 | -6/Hub_04(d) | Network Hub disabled 8560 | -6/Hub_04(d) | Spotted Lightning 8560 | -6/Hub_04(d) | Spotted Lightning 8565 | -6/Hub_04(d) | Reached level 21 8565 | -6/Hub_04(d) | Destroyed Lightning 8584 | -6/Hub_04(d) | Spotted Lightning 8588 | -6/Hub_04(d) | System corruption reached 10% 8591 | -6/Hub_04(d) | Destroyed Lightning 8600 | -6/Hub_04(d) | Allies destroyed Lightning 8632 | -6/Hub_04(d) | Found Prototype Device 8643 | -6/Hub_04(d) | Identified Exp. EM Disruption Field 8689 | -6/Hub_04(d) | Found Exp. Targeting Computer 8706 | -6/Hub_04(d) | Network Hub disabled 8784 | -6/Hub_04(d) | Spotted Lightning 8785 | -6/Hub_04(d) | Spotted Lightning 8786 | -6/Hub_04(d) | Spotted Lightning 8799 | -6/Hub_04(d) | Destroyed Lightning 8818 | -6/Hub_04(d) | Destroyed Lightning 8833 | -6/Hub_04(d) | Destroyed Lightning 8860 | -6/Hub_04(d) | Found Exp. Targeting Computer 8886 | -6/Hub_04(d) | Network Hub disabled 8900 | -6/Hub_04(d) | Entered Factory 8977 | -5/Factory | Identified exit to Factory 8977 | -5/Factory | Discovered exit to Factory (range 7) 9222 | -5/Factory | Identified exit to Upper Caves 9267 | -5/Factory | Reached level 22 9307 | -5/Factory | Entered Upper Caves 9480 | -5/Upper Caves | Learned Factory stockpile data 9597 | -5/Upper Caves | Learned 8 Research zone layouts 9597 | -5/Upper Caves | Learned Factory stockpile data 9597 | -5/Upper Caves | Learned Armory security intel 9597 | -5/Upper Caves | Learned Research garrison access intel 9637 | -5/Upper Caves | Identified exit to Upper Caves 9637 | -5/Upper Caves | Discovered exit to Upper Caves (range 10) 9668 | -5/Upper Caves | Entered another Upper Caves area 9669 | -5/Upper Caves | Discovered exit to Factory (range 9) 9808 | -5/Upper Caves | Attracted the attention of an 0b10 base 9836 | -5/Upper Caves | Learned 8 Research zone layouts 9836 | -5/Upper Caves | Learned 6 Proximity Caves zone layouts 9836 | -5/Upper Caves | Learned Factory emergency access door positions 9839 | -5/Upper Caves | Destroyed 7 combat bots 9903 | -5/Upper Caves | Encountered a Warlord checkpoint 9958 | -5/Upper Caves | Identified exit to Warlord 9958 | -5/Upper Caves | Discovered exit to Warlord (range 6) 9966 | -5/Upper Caves | Entered Warlord 10109 | -5/Warlord | Met Warlord 10131 | -5/Warlord | Found Prototype Reactor 10131 | -5/Warlord | Identified Vortex Chain Reactor 10134 | -5/Warlord | Warlord's base attacked by MAIN.C 10150 | -5/Warlord | Found Prototype Processor 10150 | -5/Warlord | Identified Exp. Core Analyzer 10159 | -5/Warlord | Found Prototype Hackware 10159 | -5/Warlord | Identified Ghost Barrier 10266 | -5/Warlord | Opened side exit 10321 | -5/Warlord | Identified exit to Proximity Caves 10321 | -5/Warlord | Discovered exit to Proximity Caves (range 9) 10329 | -5/Warlord | Entered Proximity Caves 10331 | -4/Proximity Caves | Reached level 23 10402 | -4/Proximity Caves | Learned Research trap positions 10616 | -4/Proximity Caves | Discovered exit to Factory (range 8) 10630 | -4/Proximity Caves | Entered Factory 10632 | -4/Factory | Reached level 24 10822 | -4/Factory | Identified exit to Upper Caves 10822 | -4/Factory | Discovered exit to Upper Caves (range 15) 10923 | -4/Factory | Found Quantum Capacitor 11021 | -4/Factory | Entered Upper Caves 11216 | -4/Upper Caves | Build established: Scavenger-Tank 11261 | -4/Upper Caves | Learned location of 1 exit from Research 11344 | -4/Upper Caves | Encountered a Warlord checkpoint 11401 | -4/Upper Caves | Learned Research emergency access door positions 11499 | -4/Upper Caves | Identified exit to Upper Caves 11499 | -4/Upper Caves | Discovered exit to Upper Caves (range 16) 11524 | -4/Upper Caves | Entered another Upper Caves area 11525 | -4/Upper Caves | Encountered a Warlord checkpoint 11526 | -4/Upper Caves | Identified exit to Research 11526 | -4/Upper Caves | Discovered exit to Research (range 9) 11802 | -4/Upper Caves | Attacked by a delusional Derelict stockpiling Unaware 11871 | -4/Upper Caves | Identified exit to Zhirov 11871 | -4/Upper Caves | Discovered exit to Zhirov (range 14) 11913 | -4/Upper Caves | Entered Zhirov 11913 | -4/Zhirov | Accompanied by 4 allies 11913 | -4/Zhirov | Identified exit to Proximity Caves 11913 | -4/Zhirov | Discovered exit to Proximity Caves (range 3) 11915 | -4/Zhirov | Reached level 25 11915 | -4/Zhirov | Upgraded with Utility slot (x1) 11932 | -4/Zhirov | Met Zhirov 11955 | -4/Zhirov | Attacked by Zhirov 11959 | -4/Zhirov | Zhirov warped through subspace 11968 | -4/Zhirov | Zhirov detonated his lab 11968 | -4/Zhirov | Cloak Generator disabled 12130 | -4/Zhirov | Entered Proximity Caves 12235 | -3/Proximity Caves | Spotted B-86 Titan 12249 | -3/Proximity Caves | Destroyed B-86 Titan 12404 | -3/Proximity Caves | Discovered exit to Research (range 7) 12413 | -3/Proximity Caves | Entered Research 12414 | -3/Research | Identified exit to Quarantine 12415 | -3/Research | Identified exit to Research 12415 | -3/Research | Reached level 26 12415 | -3/Research | Reached level 27 12416 | -3/Research | Loaded intel: 83 trap records 12418 | -3/Research | Loaded intel: 2 garrison access locations 12742 | -3/Research | Entered Quarantine 12744 | -3/Quarantine | Reached level 28 12778 | -3/Quarantine | Cryocooling Duct disabled 12778 | -3/Quarantine | Cryocooling Duct disabled 12793 | -3/Quarantine | Ambient heat levels rising (+40) 12793 | -3/Quarantine | Non-combat units ordered to evacuate 12793 | -3/Quarantine | Combat units ordered to evacuate 12840 | -3/Quarantine | Upgraded with Utility slot (x1) 12893 | -3/Quarantine | Quarantine Guard activated 12944 | -3/Quarantine | Destroyed 7 combat bots 12948 | -3/Quarantine | Found Alien Artifact 12954 | -3/Quarantine | Found Alien Artifact 13177 | -3/Quarantine | Spotted Quarantine Guard 13227 | -3/Quarantine | Destroyed Quarantine Guard 13272 | -3/Quarantine | Spotted Quarantine Guard 13272 | -3/Quarantine | Spotted Quarantine Guard 13293 | -3/Quarantine | Destroyed Quarantine Guard 13304 | -3/Quarantine | Destroyed Quarantine Guard 13332 | -3/Quarantine | Spotted Quarantine Guard 13337 | -3/Quarantine | Destroyed Quarantine Guard 13418 | -3/Quarantine | Found Alien Energy Cannon 13418 | -3/Quarantine | Identified Core Cannon 13495 | -3/Quarantine | Spotted Quarantine Guard 13505 | -3/Quarantine | Destroyed Quarantine Guard 13591 | -3/Quarantine | Spotted Quarantine Guard 13659 | -3/Quarantine | Destroyed Quarantine Guard 13716 | -3/Quarantine | Spotted Quarantine Guard 13720 | -3/Quarantine | Destroyed Quarantine Guard 13762 | -3/Quarantine | Discovered exit to Research (range 12) 13773 | -3/Quarantine | Spotted Quarantine Guard 13773 | -3/Quarantine | Spotted Quarantine Guard 13795 | -3/Quarantine | Destroyed Quarantine Guard 13803 | -3/Quarantine | Destroyed Quarantine Guard 13870 | -3/Quarantine | Spotted Quarantine Guard 13931 | -3/Quarantine | Found Antimissile System 13948 | -3/Quarantine | Found Alien Artifact 13948 | -3/Quarantine | Identified Subatomic Replicator 14187 | -3/Quarantine | Found Alien Reactor 14187 | -3/Quarantine | Identified Matter Drive 14205 | -3/Quarantine | Entered Research 14205 | -2/Research | Warlord forces began assault on 0b10 14207 | -2/Research | Reached level 29 14315 | -2/Research | Research machine network offline 14565 | -2/Research | Identified exit to Testing 14565 | -2/Research | Discovered exit to Testing (range 12) 14577 | -2/Research | Spotted B-90 Cyclops 14586 | -2/Research | Reached level 30 14586 | -2/Research | Destroyed B-90 Cyclops 14675 | -2/Research | Entered Testing 14765 | -2/Testing | Fabricated Exp. Signal Interpreter (x1) 14799 | -2/Testing | Found Exp. Core Analyzer 14839 | -2/Testing | Found Prototype Energy Gun 14839 | -2/Testing | Identified Hyp. EM Gauss Rifle 15033 | -2/Testing | Protovariant out of control (PG-7F3ANBMZ8H) 15033 | -2/Testing | Unleashed a protovariant (PG-7F3ANBMZ8H) 15150 | -2/Testing | Found Prototype Energy Cannon 15150 | -2/Testing | Identified Hpw. Disruptor Cannon 15232 | -2/Testing | Reached level 31 15313 | -2/Testing | Found Prototype Device 15313 | -2/Testing | Identified Exp. Thermal Shield 15318 | -2/Testing | Found Prototype Device 15318 | -2/Testing | Identified Exp. Weapon Cycler 15354 | -2/Testing | Spotted Alpha 7 15356 | -2/Testing | Spotted AH-R59(K) 15357 | -2/Testing | Spotted 7Y-HC0(K) 15357 | -2/Testing | Spotted 8B-BQ5(K) 15385 | -2/Testing | Destroyed Alpha 7 15426 | -2/Testing | Found Prototype Processor 15426 | -2/Testing | Identified Exp. Melee Analysis Suite 15438 | -2/Testing | Rewired 7Y-HC0(K) 15438 | -2/Testing | Allies destroyed 8B-BQ5(K) 15496 | -2/Testing | Identified exit to Access 15496 | -2/Testing | Discovered exit to Access (range 14) 15557 | -2/Testing | Found Prototype Device 15557 | -2/Testing | Identified Thermal Barrier 15597 | -2/Testing | Found Prototype Device 15597 | -2/Testing | Identified Exp. Hardlight Generator 15621 | -2/Testing | Build established: Scavenger-Gunner 15650 | -2/Testing | Found Prototype Leg 15650 | -2/Testing | Identified Myomer Exoskeleton 15763 | -2/Testing | Found Prototype Energy Cannon 15763 | -2/Testing | Identified Disintegrator 16062 | -2/Testing | Spotted Fortress 16071 | -2/Testing | Build established: Generator-Gunner 16162 | -2/Testing | Identified exit to Section 7 16162 | -2/Testing | Discovered exit to Section 7 (range 5) 16166 | -2/Testing | Entered Section 7 16249 | -2/Section 7 | Spotted S7 Guard 16271 | -2/Section 7 | Destroyed S7 Guard 16305 | -2/Section 7 | Found Alien Artifact 16305 | -2/Section 7 | Identified Integrated Thermoelectric Network 16305 | -2/Section 7 | Installed Integrated Thermoelectric Network, gained heat-energy exchange potential 16346 | -2/Section 7 | Reached level 32 16522 | -2/Section 7 | Discovered exit to Access (range 3) 16575 | -2/Section 7 | Spotted Executioner 16577 | -2/Section 7 | Spotted Executioner 16583 | -2/Section 7 | Destroyed Executioner 16586 | -2/Section 7 | Destroyed Executioner 16695 | -2/Section 7 | Spotted B-99 Colossus 16699 | -2/Section 7 | Spotted Alpha 7 16699 | -2/Section 7 | Spotted Alpha 7 16710 | -2/Section 7 | Destroyed Alpha 7 16716 | -2/Section 7 | Destroyed Alpha 7 16732 | -2/Section 7 | Destroyed B-99 Colossus 16814 | -2/Section 7 | Found Alien Artifact 16814 | -2/Section 7 | Identified Core Expander 16861 | -2/Section 7 | Found Alien Artifact 16861 | -2/Section 7 | Identified LRC Armor 16861 | -2/Section 7 | Installed LRC Armor, increased core integrity (+250) 16874 | -2/Section 7 | Found Alien Artifact 16874 | -2/Section 7 | Identified LRC Energy Well 16874 | -2/Section 7 | Installed LRC Energy Well, increased energy storage capacity (+250) 16928 | -2/Section 7 | Found Alien Artifact 16928 | -2/Section 7 | Identified Integrated Reactor 16928 | -2/Section 7 | Installed Integrated Reactor, increased core energy generation (+10) 17077 | -2/Section 7 | Found Alien Artifact 17077 | -2/Section 7 | Identified Terrabomb 17077 | -2/Section 7 | Used Terrabomb 17091 | -2/Section 7 | Found Alien Artifact 17091 | -2/Section 7 | Identified Transdimensional Reconstructor 17091 | -2/Section 7 | Warped through subspace 17091 | -2/Section 7 | Spotted Striker 17091 | -2/Section 7 | Spotted Striker 17091 | -2/Section 7 | Spotted Executioner 17091 | -2/Section 7 | Spotted Executioner 17158 | -2/Section 7 | Destroyed Executioner 17163 | -2/Section 7 | Destroyed Executioner 17193 | -2/Section 7 | Found Alien Energy Cannon 17193 | -2/Section 7 | Identified Drained L-Cannon 17562 | -2/Section 7 | Spotted S7 Guard 17576 | -2/Section 7 | Destroyed S7 Guard 17610 | -2/Section 7 | Found Alien Artifact 17610 | -2/Section 7 | Identified Core Physics Calibrator 17734 | -2/Section 7 | Found Alien Artifact 17755 | -2/Section 7 | Build established: Generator-Tank 17763 | -2/Section 7 | Identified Integrated Mediator 17764 | -2/Section 7 | Installed Integrated Mediator, increased core attachment efficiency. 17773 | -2/Section 7 | Entered Access 17775 | -1/Access | Reached level 33 17837 | -1/Access | Spotted B-99 Colossus 17848 | -1/Access | Destroyed B-99 Colossus 18039 | -1/Access | Fabricated Exp. Shield Generator (x1) 18205 | -1/Access | Spotted B-99 Colossus 18219 | -1/Access | Destroyed B-99 Colossus 18300 | -1/Access | Reached level 34 18472 | -1/Access | Crushed by falling debris 18505 | -1/Access | Spotted B-99 Colossus 18523 | -1/Access | First assault squad dispatched 18523 | -1/Access | Destroyed B-99 Colossus 18776 | -1/Access | Reached level 35 18822 | -1/Access | Identified exit to Command 18822 | -1/Access | Discovered exit to Command (range 16) 18862 | -1/Access | Spotted B-99 Colossus 18984 | -1/Access | Found Prototype Processor 18984 | -1/Access | Identified Exp. Terrain Scan Processor 19031 | -1/Access | Entered Command 19135 | -1/Command | Disengaged cave seal 19135 | -1/Command | Welcomed Warlord to Command 19173 | -1/Command | Spotted B-99 Colossus 19194 | -1/Command | Destroyed B-99 Colossus 19526 | -1/Command | Spotted Executioner 19527 | -1/Command | Spotted Striker 19527 | -1/Command | Spotted Executioner 19529 | -1/Command | Spotted Alpha 7 19542 | -1/Command | Spotted Executioner 19548 | -1/Command | Spotted Striker 19548 | -1/Command | Spotted Alpha 7 19554 | -1/Command | Reached level 36 19554 | -1/Command | Destroyed Striker 19554 | -1/Command | Spotted Executioner 19557 | -1/Command | Destroyed Striker 19560 | -1/Command | Warlord destroyed during the assault 19567 | -1/Command | Destroyed Alpha 7 19567 | -1/Command | Destroyed Executioner 19571 | -1/Command | Spotted B-99 Colossus 19572 | -1/Command | Destroyed B-99 Colossus 19572 | -1/Command | Destroyed Executioner 19589 | -1/Command | Destroyed Alpha 7 19610 | -1/Command | Destroyed 7 combat bots 19789 | -1/Command | Disengaged cave seal 19789 | -1/Command | Derelicts emerged from the dark tunnel 19815 | -1/Command | First assault squad dispatched 19872 | -1/Command | Phase Generator disabled 20267 | -1/Command | Spotted M Guard 20267 | -1/Command | Spotted M Guard 20268 | -1/Command | Spotted Combat Programmer 20268 | -1/Command | Spotted Combat Programmer 20282 | -1/Command | Destroyed Combat Programmer 20288 | -1/Command | Destroyed Combat Programmer 20316 | -1/Command | Destroyed M Guard 20332 | -1/Command | Destroyed M Guard 20332 | -1/Command | All MAIN.C guards destroyed 20514 | -1/Command | Met MAIN.C 20521 | -1/Command | 0b10 Conduit disabled 20535 | -1/Command | Destroyed MAIN.C Shell 20537 | -1/Command | Surrendered to MAIN.C 20537 | -1/Command | Loaded intel: 47 machine locations 20537 | -1/Command | Loaded intel: 95 trap records 20537 | -1/Command | Identified exit to Surface 20537 | -1/Command | Discovered exit to Surface (range 59) 20537 | -1/Command | Discovered exit to Surface (range 90) 20669 | -1/Command | Found Zero-point Reactor 20673 | -1/Command | Found Vortex Chain Reactor 20686 | -1/Command | Found Prototype Protection 20686 | -1/Command | Identified Centrium Heavy Armor Plating 20690 | -1/Command | Found Prototype Device 20690 | -1/Command | Identified Exp. System Purifier 20693 | -1/Command | Found Prototype Device 20693 | -1/Command | Identified Beam Splitter 20696 | -1/Command | MAIN.C activated Command garrisons 20696 | -1/Command | Found Prototype Device 20696 | -1/Command | Identified Exp. Cloaking Device 20734 | -1/Command | Unknown forces attacked Command 20736 | -1/Command | Spotted EQ-017 20736 | -1/Command | Spotted EQ-000 20798 | -1/Command | Destroyed EQ-017 20800 | -1/Command | Spotted EQ-002 20805 | -1/Command | Spotted EQ-001 20818 | -1/Command | Destroyed EQ-002 20833 | -1/Command | Spotted EQ-018 20833 | -1/Command | Spotted EQ-019 20842 | -1/Command | Destroyed EQ-019 20852 | -1/Command | Spotted EQ-012 20868 | -1/Command | Destroyed EQ-012 20889 | -1/Command | Spotted EQ-037 20892 | -1/Command | Spotted EQ-013 20896 | -1/Command | Destroyed EQ-037 20901 | -1/Command | Destroyed EQ-013 20937 | -1/Command | Spotted EQ-038 20937 | -1/Command | Spotted EQ-051 20941 | -1/Command | Destroyed EQ-038 20943 | -1/Command | Destroyed EQ-051 20952 | -1/Command | Spotted EQ-039 21013 | -1/Command | Spotted EQ-058 21014 | -1/Command | Spotted EQ-047 21014 | -1/Command | Spotted EQ-016 21015 | -1/Command | Spotted EQ-048 21025 | -1/Command | Destroyed EQ-058 21030 | -1/Command | Destroyed EQ-047 21034 | -1/Command | Found Corrupted Prototype Device 21034 | -1/Command | Identified Adv. EM Disruption Field 21046 | -1/Command | Spotted EQ-052 21050 | -1/Command | Spotted EQ-043 21050 | -1/Command | Spotted EQ-071 21054 | -1/Command | Spotted EQ-074 21054 | -1/Command | Spotted EQ-083 21054 | -1/Command | Spotted EQ-063 21062 | -1/Command | Destroyed EQ-063 21073 | -1/Command | Destroyed EQ-052 21083 | -1/Command | Destroyed EQ-083 21091 | -1/Command | Destroyed EQ-043 21093 | -1/Command | Spotted EQ-073 21094 | -1/Command | Spotted EQ-059 21112 | -1/Command | Destroyed 7 combat bots 21112 | -1/Command | Destroyed EQ-074 21113 | -1/Command | Spotted EQ-069 21121 | -1/Command | Destroyed EQ-073 21126 | -1/Command | Spotted EQ-079 21126 | -1/Command | Destroyed EQ-069 21128 | -1/Command | Spotted EQ-068 21131 | -1/Command | Destroyed EQ-059 21137 | -1/Command | Destroyed EQ-079 21144 | -1/Command | Destroyed EQ-068 21150 | -1/Command | Spotted EQ-096 21150 | -1/Command | Spotted EQ-085 21150 | -1/Command | Spotted EQ-086 21150 | -1/Command | Spotted EQ-084 21155 | -1/Command | Destroyed EQ-085 21161 | -1/Command | Destroyed EQ-084 21182 | -1/Command | Destroyed 8 combat bots 21183 | -1/Command | Destroyed EQ-096 21191 | -1/Command | Destroyed EQ-086 21191 | -1/Command | Spotted EQ-109 21194 | -1/Command | Spotted EQ-053 21205 | -1/Command | Destroyed EQ-109 21206 | -1/Command | Attackers retreated from Command 21208 | *** | Fortifying 0b10! Last Messages --------------- 21190_ Slug penetrates Reinforced Barrier. 21191_ Adv. Dynamic Insulation System melted. 21191_ Imp. Quantum Reactor melted. 21191_ Exp. Targeting Computer melted. 21191_ Adv. Thermal Shield melted. 21191_ EQ-086 destroyed. 21191_ MAIN.C knocked back. 21200_ Destroyed Imp. Shock Absorption System. 21203_ Destroyed Exp. Heat Sink. 21203_ MAIN.C knocked back. 21205_ EQ-109 critical meltdown. 21205_ Adv. Targeting Computer melted. 21206_ ALERT: Enemy forces retreating. MAIN.C: I admit your assistance was pivotal here. It looks like I was right to trust you. This attack appears to have been designed to merely test our defenses, although it was nearly effective enough to force me to take the conflict to the next level. Investigating the origins of these bots should be one of our highest priorities... Map ----- +----------------------------------------------------+ | #??????????????????????????????????????????????? | | #??????????????????????????????????????????????? | | #??????????????????????????????????????????????? | | #??????????????????????????????????????????????? | | #??????????????????????????????????????????????? | | #??????????????????###########################?? | | ###????????????????#?????????????????????????#?? | | #????????????????#?#######################?#?? | | #?########???????#?#"""" % %%%##### | | #?# #######?#?#"" % !!! %! #?#?? | | #?# # #?#?#"""" % =!=!! ##### | | #?# # #?#?#" " " % !!!!%* /[*!% | | #?# # #?#?# % ]%=!=%! /=%![ | | ### # #?#?#" =!![!%" /%=[ | | ##" # #?#?# !! %% !=!!% *##### | | #= ##" + #?#?#*"=! =[=[[%= #?#?? | | #%! #?# # #?#?#!]*!%!%% % *!! ]! ##### | | "*% #?# #! ###?#%!%=!M=%[ [ /[! #?#?? | | #! !##" #?#!%=!%%!*= %=%! =%*% #?#?? | | "!*=## #! ##?#!=%!==%[%! %! =% /%#?#?? | | #]= *=# % ! %!##?#]]=!%=!=[]! % "#?#?? | | # *]=##= ! %*!] #?#*!%%[%!=%= ! %"%#?#?? | | !=!## ![% ![![!!####===*!*=! !!]! " " #?#?? | | =%=!%= !%!!%*!![=%=%=%[%%!%]%[% =%! "" " #?#?? | | ]= =%%*= %=%%%%[=%*%[%===*![!*[* ![!! " #?#?? | | = = ! **===!|!===%[[=@!!! =*= " #?#?? | | !! #% # !=!%%%####!![%% !%= ! #?#?? | | ## !!= #%=!!*%##?#!%!%% ==[ "" """#?#?? | | # # #!!!%! # !!!##?#?#=% %% " #?#?? | | ## # !! % =#??#?#;#####################?#?? | | ?##### " #??#?# #?????????????????????#?? | | ????## = ##" #??###########################?? | | ?????# " # "#?????????????????????????????? | | ?????######+### ##?????????????????????????????? | | #########?# #?" #??????????????????????????????? | | #?# #?# #??????????????????????????????? | | * ### ### ??????????????????????????????? | | # ## !# ?????????????????????????????? | | + # #%# ?????????????????????????????? | | # # #= ?????????????????????????????? | | [ # ! # #% ?????????????????????????????? | | ## ## # # ??????????????????????????????? | | ######+### #??# #???????????????????????????????? | | # #??# #???????????????????????????????? | | # ####+###?????????????????????????????? | | # # #?????????????????????????????? | | + # #?????????????????????????????? | | # # #?????????????????????????????? | | # # #?????????????????????????????? | | ########## # #?????????????????????????????? | +----------------------------------------------------+ Best States ------------- Heat Dissipation 181 Energy Generation 122 Energy Capacity 1550 Matter Stores 300 Matter Capacity 300 Sight Range 18 Robot Scan Range 20 Terrain Scan Range 16 Terrain Scan Density 410 Power Amplification 30 Armor Coverage 600 Resistance: KI 65 Resistance: TH 100 Resistance: EX 55 Resistance: EM 100 Resistance: I 35 Resistance: S 35 Resistance: P 35 Point Defense Rating 240 Weapon Cycling 30 Phase Shifting 20 Evasion (%) 76 Targeting Accuracy 20 Melee Accuracy 12 Core Analysis 12 Armor Integrity Analysis 30 Particle Charging 20 Offensive Hacking 20 Defensive Hacking 20 Item Schematics ----------------- Enh. Gauss Cannon | -7/Storage | Hacked Adv. Remote Datajack | -3/Quarantine | Hacked Enh. Coil Gun | -3/Quarantine | Archive Nanosword | -3/Quarantine | Archive Tactical Quantum Warhead | -3/Quarantine | Archive Plasma Sword | -3/Quarantine | Archive Exp. System Shield | -3/Quarantine | Archive Impact Mace | -3/Quarantine | Archive Electron Diverter | -3/Quarantine | Archive Exp. Signal Interpreter | -3/Quarantine | Archive Lgt. Neutrino Core | -3/Quarantine | Archive Imp. Energy Mantle | -3/Quarantine | Archive Hvy. Gatling Laser | -3/Quarantine | Archive Exp. ECM Suite | -3/Quarantine | Archive Centrium Leg | -2/Testing | Hacked Exp. Cooling System | -2/Testing | Archive Adv. Myomer Leg | -2/Testing | Archive Imp. Q-thruster | -2/Testing | Archive Cld. Q-thruster | -2/Testing | Archive Thermal Barrier | -2/Testing | Archive Adv. Plasma Rifle | -2/Testing | Archive Exp. Shield Generator | -2/Section 7 | Archive Hvy. Proton Cannon | -2/Section 7 | Archive Adv. Variable Charge Gun | -2/Section 7 | Archive Com. Particle Reactor | -2/Section 7 | Archive Cld. Gravmag System | -2/Section 7 | Archive Enh. Biometal Leg | -2/Section 7 | Archive Hdn. Centrium Leg | -2/Section 7 | Archive Robot Schematics ------------------ K-01 Serf | -3/Quarantine | Archive G-67 Veteran | -3/Quarantine | Archive T-07 Excavator | -3/Quarantine | Archive R-06 Scavenger | -3/Quarantine | Archive A-27 Freighter | -3/Quarantine | Archive A-15 Conveyor | -2/Section 7 | Archive Fabricated ------------ E-15 Imp | x2 | -6/Factory | Preloaded Exp. Signal Interpreter | x1 | -2/Testing Exp. Shield Generator | x1 | -1/Access Alien Tech Used ----------------- Core Cannon Subatomic Replicator Matter Drive Integrated Thermoelectric Network Core Expander LRC Armor LRC Energy Well Integrated Reactor Terrabomb Transdimensional Reconstructor Drained L-Cannon Core Physics Calibrator Integrated Mediator Achievements -------------- None Challenges ------------ None RPGLIKE | -11 -10 -10 -10 -9 -8 -7 -7 -6 -6 -6 -6 -6 -5 -5 -5 -5 -4 -4 -4 -4 -4 -3 -3 -3 -2 -2 -2 -1 -1 --------- Run | Scr Mat Min Exi Min Mat Fac Sto Fac Ext Cet Arc Hub Fac Upp Upp War Pro Fac Upp Upp Zhi Pro Res Qua Res Tes Sec Acc Com Levels Raised 35 | . . . 1 . 5 4 4 2 2 . . 2 1 . . . 1 1 . . 1 . 2 1 2 1 1 3 1 XP Earned 59684 | 6000 885 500 200 843 7856 6191 4803 3916 2092 855 356 1821 1298 303 484 338 1000 1569 244 244 294 1150 2556 1573 2208 1931 2020 3691 2463 XP Spent 58490 | 5920 60 . 1330 . 6760 1700 8170 5700 3300 . . 2440 450 1250 . . 1500 450 . . 2900 . . 4160 1750 3110 1515 2825 3200 Upgrades 99 | 23 2 . 3 . 14 1 11 6 3 . . 4 1 1 . . 1 3 . . 1 . . 3 1 5 5 6 5 Power Slot 3 | . . . . . 1 . 1 1 . . . . . . . . . . . . . . . . . . . . . Propulsion Slot 5 | 1 . . 1 . . . 1 2 . . . . . . . . . . . . . . . . . . . . . Utility Slot 10 | 2 . . . . 2 1 2 . 1 . . . . . . . . . . . 1 . . 1 . . . . . Weapon Slot 4 | 1 . . . . 2 . . 1 . . . . . . . . . . . . . . . . . . . . . Core Integrity 5 | . 2 . . . . . . 2 . . . . . . . . . . . . . . . . . . 1 . . Heat Dissipation 26 | 4 . . 1 . 8 . 5 . . . . 2 1 . . . . . . . . . . 2 . 1 . 2 . Mass Support 2 | . . . . . 1 . . . . . . 1 . . . . . . . . . . . . . . . . . Inventory Capacity 7 | 3 . . . . . . . . . . . 1 . 1 . . 1 . . . . . . . 1 . . . . Sight Range 2 | 2 . . . . . . . . . . . . . . . . . . . . . . . . . . . . . Sensor Range 10 | 9 . . . . . . . . . . . . . . . . . . . . . . . . . . . 1 . Terrain Scan Density 4 | 1 . . . . . . 2 . . . . . . . . . . . . . . . . . . . . 1 . Ranged Accuracy 7 | . . . 1 . . . . . . . . . . . . . . . . . . . . . . 4 . . 2 KI Resistance % 4 | . . . . . . . . . . . . . . . . . . 1 . . . . . . . . 2 . 1 TH Resistance % 4 | . . . . . . . . . . . . . . . . . . 1 . . . . . . . . 1 2 . EX Resistance % 4 | . . . . . . . . . . . . . . . . . . 1 . . . . . . . . 1 . 2 TH Damage % 2 | . . . . . . . . . 2 . . . . . . . . . . . . . . . . . . . . Protomatter Created 8500 | . 75 . . . 272 178 612 421 315 . 146 476 197 49 196 . . 292 . . . 97 206 712 . 382 1382 1007 1485 Integrity Restored 9167 | . 108 . . . 343 357 492 401 391 486 24 1076 299 . 107 . 67 20 . . 260 77 20 386 . 995 850 852 1556 Core 4843 | . 108 . . . 169 226 298 237 289 94 21 451 180 . 70 . 42 15 . . 237 24 16 193 . 130 598 620 825 Parts 4324 | . . . . . 174 131 194 164 102 392 3 625 119 . 37 . 25 5 . . 23 53 4 193 . 865 252 232 731 Protomatter Decayed 20167 | . . . . . 130 129 389 336 490 . 146 684 58 113 70 161 . 364 . . 75 . 63 623 1709 417 1018 530 12662 Game ------ Seed LightningWarpDriver Manual? 0 Play Time 03:54:04 Cumulative 269.0 hours Start 2022.06.19 @ 19:01:32 End 2022.06.20 @ 01:17:27 Sessions 1 Manual Loads 0 Difficulty Explorer Special Mode Winter2019/RPGLIKE Game No. 90 Rogue 0 Adventurer 1 Explorer 89 Win Type 8 Total 18 Types 9/0/4/3/0/0/1/0/1 Lore% 88 Gallery% 87 Achievement% 75 Wizard Run 0 Options --------- ASCII 0 Keyboard 1 Movement Numpad Keybinds 0 Fullscreen 0 Font 14/Terminus Map View 76x50 Tactical HUD 1 Map Filters BRIGHTNESS(150) Filters NONE Steam 1 RUN: 7bad1a91-84b5-4684-ad6b-95dcf7ea5ab2